Workbook

Sheet Summary (hidden)
B2: PROJECT SUMMARY INFORMATION
B3: Property (Project) Name: | C3: ='Project Overview'!C6 -> 0 | F3: Borrower (Legal Entity) Name: | G3: ='Project Overview'!G8 -> 0
B4: Street Address: | C4: ='Project Overview'!C8 -> 0
B5: Developer (Sponsor): | C5: ='Project Overview'!G6 -> 0
B7: PRELIMINARY PROJECT ANALYSIS | G7: ADDITIONAL DETAILS
B8: Metrics | C8: Proforma | D8: Target Range | E8: Comments | G8: Item | H8: Detail
B9: Stabilized DCR (Year 1) | C9: =#REF! ->  | D9: =TEXT(Summary!$H$64,"0.00")&" - "&TEXT(Summary!$I$64, "0.00") -> 1.10 - 1.25 | E9: =IF(OR(C9="0.00",C9="NHD"),"N/A",IF(AND(Summary!$H$64<=C9,C9<=Summary!$I$64),"OK","Needs Review")) ->  | G9: HDA Subsidy Requested | H9: ='Sources & Uses'!K15 -> 0
B10: Lowest DCR (Years 1-20) | C10: =IF(MIN(#REF!)=0,"NHD",MIN(#REF!)) ->  | D10: =TEXT(Summary!$H$64,"0.00")&" - "&TEXT(Summary!$I$64, "0.00") -> 1.10 - 1.25 | E10: =IF(OR(C10="0.00",C10="NHD"),"N/A",IF(AND(Summary!$H$64<=C10,C10<=Summary!$I$64),"OK","Needs Review")) ->  | G10: Original Application Date | H10: ='Unit Mix, Income, Timeline'!#REF! -> 
B11: Average DCR (Years 1-20) | C11: =IFERROR(AVERAGE(#REF!),"NHD") -> NHD | D11: =TEXT(Summary!$H$64,"0.00")&" - "&TEXT(Summary!$I$64, "0.00") -> 1.10 - 1.25 | E11: =IF(OR(C11="0.00",C11="NHD"),"N/A",IF(AND(Summary!$H$64<=C11,C11<=Summary!$I$64),"OK","Needs Review")) -> N/A | G11: Current Model Iteration Date | H11: ='Unit Mix, Income, Timeline'!#REF! -> 
B12: HDA Subsidy per HDA Program Unit | C12: =H9/'Unit Mix, Income, Timeline'!C30 ->  | D12: =TEXT(Summary!H65,"$0,0")&" - "&TEXT(Summary!I65, "$0,0") -> $40,000 - $100,000 | E12: =IF(AND(Summary!H65<=C12,C12<=Summary!I65),"OK","Needs Review") ->  | G12: Total Units | H12: =Total_Units -> 0
B13: HDA Subsidy per HDA Program Sq Ft | C13: =H9/'Unit Mix, Income, Timeline'!G30 ->  | D13: =TEXT(Summary!H66,"$0,0")&" - "&TEXT(Summary!I66, "$0,0") -> $90 - $150 | E13: =IF(AND(Summary!H66<=C13,C13<=Summary!I66),"OK","Needs Review") ->  | G13: Total HDA Program Units | H13: ='Unit Mix, Income, Timeline'!C30 -> 0
B14: HDA Subsidy per Affordable Unit | C14: =H9/'Unit Mix, Income, Timeline'!C29 ->  | D14: =TEXT(Summary!H67,"$0,0")&" - "&TEXT(Summary!I67, "$0,0") -> $40,000 - $70,000 | E14: =IF(AND(Summary!H67<=C14,C14<=Summary!I67),"OK","Needs Review") ->  | G14: % Program Units | H14: =H13/Total_Units -> 
B15: HDA Subsidy per Affordable Sq Ft | C15: =H9/'Unit Mix, Income, Timeline'!G29 ->  | D15: =TEXT(Summary!H68,"$0.00")&" - "&TEXT(Summary!I68, "$0.00") -> $90.00 - $150.00 | E15: =IF(AND(Summary!H68<=C15,C15<=Summary!I68),"OK","Needs Review") ->  | G15: Total Affordable Units | H15: ='Unit Mix, Income, Timeline'!C29 -> 0
B16: TDC per Unit (MKT + Aff.) | C16: ='Development Costs'!C63/Total_Units ->  | D16: =TEXT(Summary!H69,"$0,0")&" - "&TEXT(Summary!I69, "$0,0") -> $150,000 - $300,000 | E16: =IF(AND(Summary!H69<=C16,C16<=Summary!I69),"OK","Needs Review") ->  | G16: % Affordable Units | H16: ='Unit Mix, Income, Timeline'!C29/Total_Units -> 
B17: TDC per Sq Ft (MKT + Aff.) | C17: ='Development Costs'!C63/'Unit Mix, Income, Timeline'!G28 ->  | D17: =TEXT(Summary!H70,"$0.00")&" - "&TEXT(Summary!I70, "$0.00") -> $400.00 - $550.00 | E17: =IF(AND(Summary!H70<=C17,C17<=Summary!I70),"OK","Needs Review") ->  | G17: Project Type | H17: ='Unit Mix, Income, Timeline'!#REF! -> 
B19: UNIT MIX
B20: Description | C20: Type | D20: AMI | E20: # Units | F20: Contract Rent | H20: Size
B21: =IF(D21="","",IF(D21="MKT","Market Rate Units",IF(D21<=50%,"HDA Program Units","Affordable Housing Units"))) ->  | C21: =IF('Unit Mix, Income, Timeline'!D4="","",'Unit Mix, Income, Timeline'!D4&" Bed / "&'Unit Mix, Income, Timeline'!E4&" Bath") ->  | D21: =IF('Unit Mix, Income, Timeline'!B4="","",'Unit Mix, Income, Timeline'!B4) ->  | E21: =IF('Unit Mix, Income, Timeline'!C4="","",'Unit Mix, Income, Timeline'!C4) ->  | F21: =IF('Unit Mix, Income, Timeline'!L4="", "", 'Unit Mix, Income, Timeline'!L4) ->  | H21: =IF('Unit Mix, Income, Timeline'!F4="", "", 'Unit Mix, Income, Timeline'!F4&" ft"&CHAR(178)) -> 
C22: =IF('Unit Mix, Income, Timeline'!D5="","",'Unit Mix, Income, Timeline'!D5&" Bed / "&'Unit Mix, Income, Timeline'!E5&" Bath") ->  | D22: =IF('Unit Mix, Income, Timeline'!B5="","",'Unit Mix, Income, Timeline'!B5) ->  | E22: =IF('Unit Mix, Income, Timeline'!C5="","",'Unit Mix, Income, Timeline'!C5) ->  | F22: =IF('Unit Mix, Income, Timeline'!L5="", "", 'Unit Mix, Income, Timeline'!L5) ->  | H22: =IF('Unit Mix, Income, Timeline'!F5="", "", 'Unit Mix, Income, Timeline'!F5&" ft"&CHAR(178)) -> 
C23: =IF('Unit Mix, Income, Timeline'!D6="","",'Unit Mix, Income, Timeline'!D6&" Bed / "&'Unit Mix, Income, Timeline'!E6&" Bath") ->  | D23: =IF('Unit Mix, Income, Timeline'!B6="","",'Unit Mix, Income, Timeline'!B6) ->  | E23: =IF('Unit Mix, Income, Timeline'!C6="","",'Unit Mix, Income, Timeline'!C6) ->  | F23: =IF('Unit Mix, Income, Timeline'!L6="", "", 'Unit Mix, Income, Timeline'!L6) ->  | H23: =IF('Unit Mix, Income, Timeline'!F6="", "", 'Unit Mix, Income, Timeline'!F6&" ft"&CHAR(178)) -> 
C24: =IF('Unit Mix, Income, Timeline'!D7="","",'Unit Mix, Income, Timeline'!D7&" Bed / "&'Unit Mix, Income, Timeline'!E7&" Bath") ->  | D24: =IF('Unit Mix, Income, Timeline'!B7="","",'Unit Mix, Income, Timeline'!B7) ->  | E24: =IF('Unit Mix, Income, Timeline'!C7="","",'Unit Mix, Income, Timeline'!C7) ->  | F24: =IF('Unit Mix, Income, Timeline'!L7="", "", 'Unit Mix, Income, Timeline'!L7) ->  | H24: =IF('Unit Mix, Income, Timeline'!F7="", "", 'Unit Mix, Income, Timeline'!F7&" ft"&CHAR(178)) -> 
C25: =IF('Unit Mix, Income, Timeline'!D8="","",'Unit Mix, Income, Timeline'!D8&" Bed / "&'Unit Mix, Income, Timeline'!E8&" Bath") ->  | D25: =IF('Unit Mix, Income, Timeline'!B8="","",'Unit Mix, Income, Timeline'!B8) ->  | E25: =IF('Unit Mix, Income, Timeline'!C8="","",'Unit Mix, Income, Timeline'!C8) ->  | F25: =IF('Unit Mix, Income, Timeline'!L8="", "", 'Unit Mix, Income, Timeline'!L8) ->  | H25: =IF('Unit Mix, Income, Timeline'!F8="", "", 'Unit Mix, Income, Timeline'!F8&" ft"&CHAR(178)) -> 
C26: =IF('Unit Mix, Income, Timeline'!D9="","",'Unit Mix, Income, Timeline'!D9&" Bed / "&'Unit Mix, Income, Timeline'!E9&" Bath") ->  | D26: =IF('Unit Mix, Income, Timeline'!B9="","",'Unit Mix, Income, Timeline'!B9) ->  | E26: =IF('Unit Mix, Income, Timeline'!C9="","",'Unit Mix, Income, Timeline'!C9) ->  | F26: =IF('Unit Mix, Income, Timeline'!L9="", "", 'Unit Mix, Income, Timeline'!L9) ->  | H26: =IF('Unit Mix, Income, Timeline'!F9="", "", 'Unit Mix, Income, Timeline'!F9&" ft"&CHAR(178)) -> 
C27: =IF('Unit Mix, Income, Timeline'!D10="","",'Unit Mix, Income, Timeline'!D10&" Bed / "&'Unit Mix, Income, Timeline'!E10&" Bath") ->  | D27: =IF('Unit Mix, Income, Timeline'!B10="","",'Unit Mix, Income, Timeline'!B10) ->  | E27: =IF('Unit Mix, Income, Timeline'!C10="","",'Unit Mix, Income, Timeline'!C10) ->  | F27: =IF('Unit Mix, Income, Timeline'!L10="", "", 'Unit Mix, Income, Timeline'!L10) ->  | H27: =IF('Unit Mix, Income, Timeline'!F10="", "", 'Unit Mix, Income, Timeline'!F10&" ft"&CHAR(178)) -> 
C28: =IF('Unit Mix, Income, Timeline'!D11="","",'Unit Mix, Income, Timeline'!D11&" Bed / "&'Unit Mix, Income, Timeline'!E11&" Bath") ->  | D28: =IF('Unit Mix, Income, Timeline'!B11="","",'Unit Mix, Income, Timeline'!B11) ->  | E28: =IF('Unit Mix, Income, Timeline'!C11="","",'Unit Mix, Income, Timeline'!C11) ->  | F28: =IF('Unit Mix, Income, Timeline'!L11="", "", 'Unit Mix, Income, Timeline'!L11) ->  | H28: =IF('Unit Mix, Income, Timeline'!F11="", "", 'Unit Mix, Income, Timeline'!F11&" ft"&CHAR(178)) -> 
C29: =IF('Unit Mix, Income, Timeline'!D12="","",'Unit Mix, Income, Timeline'!D12&" Bed / "&'Unit Mix, Income, Timeline'!E12&" Bath") ->  | D29: =IF('Unit Mix, Income, Timeline'!B12="","",'Unit Mix, Income, Timeline'!B12) ->  | E29: =IF('Unit Mix, Income, Timeline'!C12="","",'Unit Mix, Income, Timeline'!C12) ->  | F29: =IF('Unit Mix, Income, Timeline'!L12="", "", 'Unit Mix, Income, Timeline'!L12) ->  | H29: =IF('Unit Mix, Income, Timeline'!F12="", "", 'Unit Mix, Income, Timeline'!F12&" ft"&CHAR(178)) -> 
C30: =IF('Unit Mix, Income, Timeline'!D13="","",'Unit Mix, Income, Timeline'!D13&" Bed / "&'Unit Mix, Income, Timeline'!E13&" Bath") ->  | D30: =IF('Unit Mix, Income, Timeline'!B13="","",'Unit Mix, Income, Timeline'!B13) ->  | E30: =IF('Unit Mix, Income, Timeline'!C13="","",'Unit Mix, Income, Timeline'!C13) ->  | F30: =IF('Unit Mix, Income, Timeline'!L13="", "", 'Unit Mix, Income, Timeline'!L13) ->  | H30: =IF('Unit Mix, Income, Timeline'!F13="", "", 'Unit Mix, Income, Timeline'!F13&" ft"&CHAR(178)) -> 
C31: =IF('Unit Mix, Income, Timeline'!D14="","",'Unit Mix, Income, Timeline'!D14&" Bed / "&'Unit Mix, Income, Timeline'!E14&" Bath") ->  | D31: =IF('Unit Mix, Income, Timeline'!B14="","",'Unit Mix, Income, Timeline'!B14) ->  | E31: =IF('Unit Mix, Income, Timeline'!C14="","",'Unit Mix, Income, Timeline'!C14) ->  | F31: =IF('Unit Mix, Income, Timeline'!L14="", "", 'Unit Mix, Income, Timeline'!L14) ->  | H31: =IF('Unit Mix, Income, Timeline'!F14="", "", 'Unit Mix, Income, Timeline'!F14&" ft"&CHAR(178)) -> 
C32: =IF('Unit Mix, Income, Timeline'!D15="","",'Unit Mix, Income, Timeline'!D15&" Bed / "&'Unit Mix, Income, Timeline'!E15&" Bath") ->  | D32: =IF('Unit Mix, Income, Timeline'!B15="","",'Unit Mix, Income, Timeline'!B15) ->  | E32: =IF('Unit Mix, Income, Timeline'!C15="","",'Unit Mix, Income, Timeline'!C15) ->  | F32: =IF('Unit Mix, Income, Timeline'!L15="", "", 'Unit Mix, Income, Timeline'!L15) ->  | H32: =IF('Unit Mix, Income, Timeline'!F15="", "", 'Unit Mix, Income, Timeline'!F15&" ft"&CHAR(178)) -> 
C33: =IF('Unit Mix, Income, Timeline'!D16="","",'Unit Mix, Income, Timeline'!D16&" Bed / "&'Unit Mix, Income, Timeline'!E16&" Bath") ->  | D33: =IF('Unit Mix, Income, Timeline'!B16="","",'Unit Mix, Income, Timeline'!B16) ->  | E33: =IF('Unit Mix, Income, Timeline'!C16="","",'Unit Mix, Income, Timeline'!C16) ->  | F33: =IF('Unit Mix, Income, Timeline'!L16="", "", 'Unit Mix, Income, Timeline'!L16) ->  | H33: =IF('Unit Mix, Income, Timeline'!F16="", "", 'Unit Mix, Income, Timeline'!F16&" ft"&CHAR(178)) -> 
C34: =IF('Unit Mix, Income, Timeline'!D17="","",'Unit Mix, Income, Timeline'!D17&" Bed / "&'Unit Mix, Income, Timeline'!E17&" Bath") ->  | D34: =IF('Unit Mix, Income, Timeline'!B17="","",'Unit Mix, Income, Timeline'!B17) ->  | E34: =IF('Unit Mix, Income, Timeline'!C17="","",'Unit Mix, Income, Timeline'!C17) ->  | F34: =IF('Unit Mix, Income, Timeline'!L17="", "", 'Unit Mix, Income, Timeline'!L17) ->  | H34: =IF('Unit Mix, Income, Timeline'!F17="", "", 'Unit Mix, Income, Timeline'!F17&" ft"&CHAR(178)) -> 
C35: =IF('Unit Mix, Income, Timeline'!D18="","",'Unit Mix, Income, Timeline'!D18&" Bed / "&'Unit Mix, Income, Timeline'!E18&" Bath") ->  | D35: =IF('Unit Mix, Income, Timeline'!B18="","",'Unit Mix, Income, Timeline'!B18) ->  | E35: =IF('Unit Mix, Income, Timeline'!C18="","",'Unit Mix, Income, Timeline'!C18) ->  | F35: =IF('Unit Mix, Income, Timeline'!L18="", "", 'Unit Mix, Income, Timeline'!L18) ->  | H35: =IF('Unit Mix, Income, Timeline'!F18="", "", 'Unit Mix, Income, Timeline'!F18&" ft"&CHAR(178)) -> 
C36: =IF('Unit Mix, Income, Timeline'!D19="","",'Unit Mix, Income, Timeline'!D19&" Bed / "&'Unit Mix, Income, Timeline'!E19&" Bath") ->  | D36: =IF('Unit Mix, Income, Timeline'!B19="","",'Unit Mix, Income, Timeline'!B19) ->  | E36: =IF('Unit Mix, Income, Timeline'!C19="","",'Unit Mix, Income, Timeline'!C19) ->  | F36: =IF('Unit Mix, Income, Timeline'!L19="", "", 'Unit Mix, Income, Timeline'!L19) ->  | H36: =IF('Unit Mix, Income, Timeline'!F19="", "", 'Unit Mix, Income, Timeline'!F19&" ft"&CHAR(178)) -> 
C37: =IF('Unit Mix, Income, Timeline'!D20="","",'Unit Mix, Income, Timeline'!D20&" Bed / "&'Unit Mix, Income, Timeline'!E20&" Bath") ->  | D37: =IF('Unit Mix, Income, Timeline'!B20="","",'Unit Mix, Income, Timeline'!B20) ->  | E37: =IF('Unit Mix, Income, Timeline'!C20="","",'Unit Mix, Income, Timeline'!C20) ->  | F37: =IF('Unit Mix, Income, Timeline'!L20="", "", 'Unit Mix, Income, Timeline'!L20) ->  | H37: =IF('Unit Mix, Income, Timeline'!F20="", "", 'Unit Mix, Income, Timeline'!F20&" ft"&CHAR(178)) -> 
C38: =IF('Unit Mix, Income, Timeline'!D21="","",'Unit Mix, Income, Timeline'!D21&" Bed / "&'Unit Mix, Income, Timeline'!E21&" Bath") ->  | D38: =IF('Unit Mix, Income, Timeline'!B21="","",'Unit Mix, Income, Timeline'!B21) ->  | E38: =IF('Unit Mix, Income, Timeline'!C21="","",'Unit Mix, Income, Timeline'!C21) ->  | F38: =IF('Unit Mix, Income, Timeline'!L21="", "", 'Unit Mix, Income, Timeline'!L21) ->  | H38: =IF('Unit Mix, Income, Timeline'!F21="", "", 'Unit Mix, Income, Timeline'!F21&" ft"&CHAR(178)) -> 
C39: =IF('Unit Mix, Income, Timeline'!D22="","",'Unit Mix, Income, Timeline'!D22&" Bed / "&'Unit Mix, Income, Timeline'!E22&" Bath") ->  | D39: =IF('Unit Mix, Income, Timeline'!B22="","",'Unit Mix, Income, Timeline'!B22) ->  | E39: =IF('Unit Mix, Income, Timeline'!C22="","",'Unit Mix, Income, Timeline'!C22) ->  | F39: =IF('Unit Mix, Income, Timeline'!L22="", "", 'Unit Mix, Income, Timeline'!L22) ->  | H39: =IF('Unit Mix, Income, Timeline'!F22="", "", 'Unit Mix, Income, Timeline'!F22&" ft"&CHAR(178)) -> 
C40: =IF('Unit Mix, Income, Timeline'!D23="","",'Unit Mix, Income, Timeline'!D23&" Bed / "&'Unit Mix, Income, Timeline'!E23&" Bath") ->  | D40: =IF('Unit Mix, Income, Timeline'!B23="","",'Unit Mix, Income, Timeline'!B23) ->  | E40: =IF('Unit Mix, Income, Timeline'!C23="","",'Unit Mix, Income, Timeline'!C23) ->  | F40: =IF('Unit Mix, Income, Timeline'!L23="", "", 'Unit Mix, Income, Timeline'!L23) ->  | H40: =IF('Unit Mix, Income, Timeline'!F23="", "", 'Unit Mix, Income, Timeline'!F23&" ft"&CHAR(178)) -> 
C41: =IF('Unit Mix, Income, Timeline'!D24="","",'Unit Mix, Income, Timeline'!D24&" Bed / "&'Unit Mix, Income, Timeline'!E24&" Bath") ->  | D41: =IF('Unit Mix, Income, Timeline'!B24="","",'Unit Mix, Income, Timeline'!B24) ->  | E41: =IF('Unit Mix, Income, Timeline'!C24="","",'Unit Mix, Income, Timeline'!C24) ->  | F41: =IF('Unit Mix, Income, Timeline'!L24="", "", 'Unit Mix, Income, Timeline'!L24) ->  | H41: =IF('Unit Mix, Income, Timeline'!F24="", "", 'Unit Mix, Income, Timeline'!F24&" ft"&CHAR(178)) -> 
C42: =IF('Unit Mix, Income, Timeline'!D25="","",'Unit Mix, Income, Timeline'!D25&" Bed / "&'Unit Mix, Income, Timeline'!E25&" Bath") ->  | D42: =IF('Unit Mix, Income, Timeline'!B25="","",'Unit Mix, Income, Timeline'!B25) ->  | E42: =IF('Unit Mix, Income, Timeline'!C25="","",'Unit Mix, Income, Timeline'!C25) ->  | F42: =IF('Unit Mix, Income, Timeline'!L25="", "", 'Unit Mix, Income, Timeline'!L25) ->  | H42: =IF('Unit Mix, Income, Timeline'!F25="", "", 'Unit Mix, Income, Timeline'!F25&" ft"&CHAR(178)) -> 
C43: =IF('Unit Mix, Income, Timeline'!D26="","",'Unit Mix, Income, Timeline'!D26&" Bed / "&'Unit Mix, Income, Timeline'!E26&" Bath") ->  | D43: =IF('Unit Mix, Income, Timeline'!B26="","",'Unit Mix, Income, Timeline'!B26) ->  | E43: =IF('Unit Mix, Income, Timeline'!C26="","",'Unit Mix, Income, Timeline'!C26) ->  | F43: =IF('Unit Mix, Income, Timeline'!L26="", "", 'Unit Mix, Income, Timeline'!L26) ->  | H43: =IF('Unit Mix, Income, Timeline'!F26="", "", 'Unit Mix, Income, Timeline'!F26&" ft"&CHAR(178)) -> 
C44: =IF('Unit Mix, Income, Timeline'!D27="","",'Unit Mix, Income, Timeline'!D27&" Bed / "&'Unit Mix, Income, Timeline'!E27&" Bath") ->  | D44: =IF('Unit Mix, Income, Timeline'!B27="","",'Unit Mix, Income, Timeline'!B27) ->  | E44: =IF('Unit Mix, Income, Timeline'!C27="","",'Unit Mix, Income, Timeline'!C27) ->  | F44: =IF('Unit Mix, Income, Timeline'!L27="", "", 'Unit Mix, Income, Timeline'!L27) ->  | H44: =IF('Unit Mix, Income, Timeline'!F27="", "", 'Unit Mix, Income, Timeline'!F27&" ft"&CHAR(178)) -> 
B45: Total / Wtd. Avg. | E45: =SUM(E21:E44) -> 0 | F45: =SUMPRODUCT(E21:E44,G21:G44)/E45 ->  | H45: ='Unit Mix, Income, Timeline'!G28&" ft"&CHAR(178) -> 0 ft²
B47: DEVELOPMENT BUDGET | G47: YEAR ONE INCOME
B48: Type | C48: Amount | D48: Per Unit | E48: % of TDC | G48: Metric | H48: Annual
B49: ='Sources & Uses'!P5 -> Pre-Development Costs | C49: ='Sources & Uses'!Q4 -> 0 | D49: =C49/Total_Units ->  | E49: =C49/$C$59 ->  | G49: Total Rental Income | H49: ='Unit Mix, Income, Timeline'!M32 -> 0
B50: ='Sources & Uses'!#REF! ->  | C50: ='Sources & Uses'!Q5 -> 0 | G50: ="Residential Vacancy ("&TEXT(Residential_Vacancy,"0%")&")" ->  | H50: =-(H49*Residential_Vacancy) -> 
B51: ='Sources & Uses'!P6 -> Construction / Rehabilitation Costs | C51: ='Sources & Uses'!Q6 -> 0 | G51: Total Other Income | H51: =#REF! -> 
B52: ='Sources & Uses'!P7 -> General Contractor Overhead & Profit | C52: ='Sources & Uses'!Q7 -> 0 | G52: ="Commercial Vacancy ("&TEXT(Commercial_Vacancy,"0%")&")" ->  | H52: =-(H51*Commercial_Vacancy) -> 
B53: ='Sources & Uses'!P8 -> Construction Interest | C53: ='Sources & Uses'!Q8 -> 0 | G53: Effective Income: | H53: =SUM(H49:H52) -> 
B54: Total Construction Costs: | C54: =SUM(C49:C53) -> 0
B55: ='Sources & Uses'!P9 -> Permanent Financing Costs | C55: ='Sources & Uses'!Q9 -> 0 | D55: =C55/$H$12 ->  | G55: KEY METRICS
B56: ='Sources & Uses'!P10 -> Developer's Fee | C56: ='Sources & Uses'!Q10 -> 0 | D56: =C56/$H$12 ->  | G56: DDF % of LIHTC Basis | H56: =DDF/'Development Costs'!F63 -> 
B57: ='Sources & Uses'!P11 -> Operating/Rent-Up Reserves | C57: ='Sources & Uses'!Q11 -> 0 | D57: =C57/$H$12 ->  | G57: DDF % Total Developer Fee | H57: =DDF/'Development Costs'!C46 -> 
B58: ='Sources & Uses'!P12 -> Other Soft/Carrying Costs | C58: ='Sources & Uses'!Q12 -> 0 | D58: =C58/$H$12 ->  | G58: Construction Contingency % | H58: ='Development Costs'!C43 -> 
B59: Total Uses of Funds: | C59: =C54+SUM(C55:C58) -> 0 | D59: =C59/$H$12 ->  | G59: Manage Fee % of Total Rent | H59: =#REF! -> 
G60: Repl. Reserves per Unit | H60: =TEXT(#REF!, "$#") -> 
B61: PERMANENT CAPITAL STRUCTURE
B62: Source (Type) | C62: Amount | D62: Per Unit | E62: % Funding | G62: Underwriting Target Ranges
B63: ='Sources & Uses'!B6&" (Hard Debt)" -> First Mortgage (Hard Debt) | C63: ='Sources & Uses'!K6 -> 0 | D63: =C63/$H$12 ->  | E63: =C63/$C$79 ->  | G63: Metric | H63: Lower Bound | I63: Upper Bound
B64: ='Sources & Uses'!B7&" (Hard Debt)" -> Second Mortgage (Hard Debt) | C64: ='Sources & Uses'!K7 -> 0 | G64: Debt Service Ratio | H64: 1.1 | I64: 1.25
B65: ='Sources & Uses'!B9&" (Hard Debt)" -> Etc… Please Label (Hard Debt) | C65: ='Sources & Uses'!K9 -> 0 | G65: HDA Subsidy per HDA Program Unit | H65: 40000 | I65: 100000
B66: ='Sources & Uses'!B14&" (Soft Debt)" -> Deferred Developer Fee (Soft Debt) | C66: ='Sources & Uses'!K14 -> 0 | G66: HDA Subsidy per HDA Program Sq Ft | H66: 90 | I66: 150
B67: ='Sources & Uses'!B15&" (Soft Debt)" -> HDA Loan (Soft Debt) | C67: ='Sources & Uses'!K15 -> 0 | G67: HDA Subsidy per Affordable Unit | H67: 40000 | I67: 70000
B68: ='Sources & Uses'!B17&" (Soft Debt)" -> Etc… Please Label (Soft Debt) | C68: ='Sources & Uses'!K17 -> 0 | G68: HDA Subsidy per Affordable Sq Ft | H68: 90 | I68: 150
B69: ='Sources & Uses'!B23:B23&" (Equity)" -> Federal LIHTC (Equity) | C69: ='Sources & Uses'!K23 -> 0 | G69: TDC per Unit (MKT + Aff.) | H69: 150000 | I69: 300000
B70: ='Sources & Uses'!B24:B24&" (Equity)" -> Other Tax Credit (Equity) | C70: ='Sources & Uses'!K24 -> 0 | G70: TDC per Sq Ft (MKT + Aff.) | H70: 400 | I70: 550
B71: ='Sources & Uses'!B25:B25&" (Equity)" -> Grant 1 (Equity) | C71: ='Sources & Uses'!K25 -> 0
B72: ='Sources & Uses'!B26:B26&" (Equity)" -> Grant 2 (Equity) | C72: ='Sources & Uses'!K26 -> 0
B73: ='Sources & Uses'!B27:B27&" (Equity)" -> Grant 3 (Equity) | C73: ='Sources & Uses'!K27 -> 0
B74: ='Sources & Uses'!B28:B28&" (Equity)" -> Developer Equity (Not DDF) (Equity) | C74: ='Sources & Uses'!K28 -> 0
B75: ='Sources & Uses'!B29:B29&" (Equity)" -> Interim Income (Occ Rehabs) (Equity) | C75: ='Sources & Uses'!K29 -> 0
B76: ='Sources & Uses'!B30:B30&" (Equity)" -> Other (Equity) | C76: ='Sources & Uses'!K30 -> 0
B77: Total Debt: | C77: =SUM(C63:C68) -> 0
B78: Total Equity: | C78: =SUM(C69:C76) -> 0
B79: Total Sources of Funds: | C79: =SUM(C77:C78) -> 0 | D79: =SUM(D77:D78) -> 

Sheet Dev Exp Cost Comparison (hidden)
B2: Development Expense Comparison
B3: Cost Per Unit | C3: Industry Cost Per Unit | D3: Cost Per Unit Comparison | E3: Cost Per Sq Ft | F3: Industry Cost Per Sq ft | G3: Cost Per Sq Ft Comparison
B5: ='Development Costs'!C5/Total_Units ->  | D5: =C5-B5 ->  | E5: ='Development Costs'!C5/'Unit Mix, Income, Timeline'!$G$28 ->  | G5: =F5-E5 -> 
B6: ='Development Costs'!C6/Total_Units ->  | E6: ='Development Costs'!C6/'Unit Mix, Income, Timeline'!$G$28 -> 
B7: ='Development Costs'!C7/Total_Units ->  | E7: ='Development Costs'!C7/'Unit Mix, Income, Timeline'!$G$28 -> 
B8: ='Development Costs'!C8/Total_Units ->  | E8: ='Development Costs'!C8/'Unit Mix, Income, Timeline'!$G$28 -> 
B9: ='Development Costs'!C9/Total_Units ->  | E9: ='Development Costs'!C9/'Unit Mix, Income, Timeline'!$G$28 -> 
B10: ='Development Costs'!C10/Total_Units ->  | E10: ='Development Costs'!C10/'Unit Mix, Income, Timeline'!$G$28 -> 
B11: ='Development Costs'!C11/Total_Units ->  | C11: =SUM(C5:C10) -> 0 | E11: ='Development Costs'!C11/'Unit Mix, Income, Timeline'!$G$28 ->  | F11: =SUM(F5:F10) -> 0
B13: ='Development Costs'!C13/Total_Units ->  | D13: =C13-B13 ->  | E13: ='Development Costs'!C13/'Unit Mix, Income, Timeline'!$G$28 ->  | G13: =F13-E13 -> 
B14: ='Development Costs'!C14/Total_Units ->  | D14: =C14-B14 ->  | E14: ='Development Costs'!C14/'Unit Mix, Income, Timeline'!$G$28 ->  | G14: =F14-E14 -> 
B15: ='Development Costs'!C15/Total_Units ->  | D15: =C15-B15 ->  | E15: ='Development Costs'!C15/'Unit Mix, Income, Timeline'!$G$28 ->  | G15: =F15-E15 -> 
B16: ='Development Costs'!C16/Total_Units ->  | D16: =C16-B16 ->  | E16: ='Development Costs'!C16/'Unit Mix, Income, Timeline'!$G$28 ->  | G16: =F16-E16 -> 
B17: ='Development Costs'!C17/Total_Units ->  | C17: =SUM(C13:C16) -> 0 | D17: =C17-B17 ->  | E17: ='Development Costs'!C17/'Unit Mix, Income, Timeline'!$G$28 ->  | F17: =SUM(F13:F16) -> 0 | G17: =F17-E17 -> 
B19: ='Development Costs'!C19/Total_Units ->  | D19: =C19-B19 ->  | E19: ='Development Costs'!C19/'Unit Mix, Income, Timeline'!$G$28 ->  | G19: =F19-E19 -> 
B20: ='Development Costs'!C20/Total_Units ->  | E20: ='Development Costs'!C20/'Unit Mix, Income, Timeline'!$G$28 -> 
B21: ='Development Costs'!C21/Total_Units ->  | E21: ='Development Costs'!C21/'Unit Mix, Income, Timeline'!$G$28 -> 
B22: ='Development Costs'!C22/Total_Units ->  | E22: ='Development Costs'!C22/'Unit Mix, Income, Timeline'!$G$28 -> 
B23: ='Development Costs'!C23/Total_Units ->  | E23: ='Development Costs'!C23/'Unit Mix, Income, Timeline'!$G$28 -> 
B24: ='Development Costs'!C24/Total_Units ->  | E24: ='Development Costs'!C24/'Unit Mix, Income, Timeline'!$G$28 -> 
B25: ='Development Costs'!C25/Total_Units ->  | E25: ='Development Costs'!C25/'Unit Mix, Income, Timeline'!$G$28 -> 
B26: ='Development Costs'!C26/Total_Units ->  | E26: ='Development Costs'!C26/'Unit Mix, Income, Timeline'!$G$28 -> 
B27: ='Development Costs'!C27/Total_Units ->  | E27: ='Development Costs'!C27/'Unit Mix, Income, Timeline'!$G$28 -> 
B28: ='Development Costs'!C28/Total_Units ->  | E28: ='Development Costs'!C28/'Unit Mix, Income, Timeline'!$G$28 -> 
B29: ='Development Costs'!C29/Total_Units ->  | E29: ='Development Costs'!C29/'Unit Mix, Income, Timeline'!$G$28 -> 
B30: ='Development Costs'!C30/Total_Units ->  | E30: ='Development Costs'!C30/'Unit Mix, Income, Timeline'!$G$28 -> 
B31: ='Development Costs'!C31/Total_Units ->  | E31: ='Development Costs'!C31/'Unit Mix, Income, Timeline'!$G$28 -> 
B32: ='Development Costs'!C32/Total_Units ->  | E32: ='Development Costs'!C32/'Unit Mix, Income, Timeline'!$G$28 -> 
B33: ='Development Costs'!C33/Total_Units ->  | E33: ='Development Costs'!C33/'Unit Mix, Income, Timeline'!$G$28 -> 
B34: ='Development Costs'!C34/Total_Units ->  | E34: ='Development Costs'!C34/'Unit Mix, Income, Timeline'!$G$28 -> 
B35: ='Development Costs'!C35/Total_Units ->  | E35: ='Development Costs'!C35/'Unit Mix, Income, Timeline'!$G$28 -> 
B36: ='Development Costs'!C36/Total_Units ->  | E36: ='Development Costs'!C36/'Unit Mix, Income, Timeline'!$G$28 -> 
B37: ='Development Costs'!C37/Total_Units ->  | E37: ='Development Costs'!C37/'Unit Mix, Income, Timeline'!$G$28 -> 
B38: ='Development Costs'!C38/Total_Units ->  | E38: ='Development Costs'!C38/'Unit Mix, Income, Timeline'!$G$28 -> 
B39: ='Development Costs'!C39/Total_Units ->  | E39: ='Development Costs'!C39/'Unit Mix, Income, Timeline'!$G$28 -> 
B40: ='Development Costs'!C40/Total_Units ->  | E40: ='Development Costs'!C40/'Unit Mix, Income, Timeline'!$G$28 -> 
B41: ='Development Costs'!C41/Total_Units ->  | E41: ='Development Costs'!C41/'Unit Mix, Income, Timeline'!$G$28 -> 
B42: ='Development Costs'!C42/Total_Units ->  | E42: ='Development Costs'!C42/'Unit Mix, Income, Timeline'!$G$28 -> 
B44: ='Development Costs'!C44/Total_Units ->  | C44: =SUM(C19:C43) -> 0 | D44: =C44-B44 ->  | E44: ='Development Costs'!C44/'Unit Mix, Income, Timeline'!$G$28 ->  | F44: =SUM(F19:F43) -> 0 | G44: =F44-E44 -> 
B46: ='Development Costs'!C46/Total_Units ->  | D46: =C46-B46 ->  | E46: ='Development Costs'!C46/'Unit Mix, Income, Timeline'!$G$28 ->  | G46: =F46-E46 -> 
B47: ='Development Costs'!C47/Total_Units ->  | E47: ='Development Costs'!C47/'Unit Mix, Income, Timeline'!$G$28 -> 
B48: ='Development Costs'!C48/Total_Units ->  | E48: ='Development Costs'!C48/'Unit Mix, Income, Timeline'!$G$28 -> 
B49: ='Development Costs'!C49/Total_Units ->  | E49: ='Development Costs'!C49/'Unit Mix, Income, Timeline'!$G$28 -> 
B50: ='Development Costs'!C50/Total_Units ->  | E50: ='Development Costs'!C50/'Unit Mix, Income, Timeline'!$G$28 -> 
B51: ='Development Costs'!C51/Total_Units ->  | E51: ='Development Costs'!C51/'Unit Mix, Income, Timeline'!$G$28 -> 
B52: ='Development Costs'!C52/Total_Units ->  | E52: ='Development Costs'!C52/'Unit Mix, Income, Timeline'!$G$28 -> 
B53: ='Development Costs'!C53/Total_Units ->  | E53: ='Development Costs'!C53/'Unit Mix, Income, Timeline'!$G$28 -> 
B54: ='Development Costs'!C54/Total_Units ->  | E54: ='Development Costs'!C54/'Unit Mix, Income, Timeline'!$G$28 -> 
B55: ='Development Costs'!C55/Total_Units ->  | E55: ='Development Costs'!C55/'Unit Mix, Income, Timeline'!$G$28 -> 
B56: ='Development Costs'!C56/Total_Units ->  | E56: ='Development Costs'!C56/'Unit Mix, Income, Timeline'!$G$28 -> 
B57: ='Development Costs'!C57/Total_Units ->  | E57: ='Development Costs'!C57/'Unit Mix, Income, Timeline'!$G$28 -> 
B58: ='Development Costs'!C58/Total_Units ->  | E58: ='Development Costs'!C58/'Unit Mix, Income, Timeline'!$G$28 -> 
B59: ='Development Costs'!C59/Total_Units ->  | E59: ='Development Costs'!C59/'Unit Mix, Income, Timeline'!$G$28 -> 
B60: ='Development Costs'!C60/Total_Units ->  | E60: ='Development Costs'!C60/'Unit Mix, Income, Timeline'!$G$28 -> 
B61: ='Development Costs'!C61/Total_Units ->  | C61: =SUM(C46:C60) -> 0 | E61: ='Development Costs'!C61/'Unit Mix, Income, Timeline'!$G$28 ->  | F61: =SUM(F46:F60) -> 0
B63: ='Development Costs'!C63/Total_Units ->  | C63: =SUM(C11,C17,C44,C61) -> 0 | D63: =C63-B63 ->  | E63: ='Development Costs'!C63/'Unit Mix, Income, Timeline'!$G$28 ->  | F63: =SUM(F11,F17,F44,F61) -> 0 | G63: =F63-E63 -> 

Sheet ProForma Comparision (hidden)
B3: Year 1 Annual Operating Expense Assumptions
B4: Expense Item | C4: Annual Amount | D4: Exp. Per Unit | F4: Industry Exp. Per Unit | G4: Exp. Per Unit Comparison | H4: Exp. Per Sq Ft | I4: Industry Exp Per Sq ft | J4: Exp. Per Sq Ft Comparison
B5: General & Administrative | C5: =ProForma!C4 -> 0 | G5: =D5-F5 ->  | H5: =C5/'Unit Mix, Income, Timeline'!$G$28 ->  | J5: =H5-I5 -> 
B6: Management Fee | C6: =ProForma!C5 -> 0 | G6: =D6-F6 ->  | H6: =C6/'Unit Mix, Income, Timeline'!$G$28 ->  | J6: =H6-I6 -> 
B7: Management Fee % of Total Rent | C7: =C6/(SUM('ProForma Comparision'!#REF!)) -> 
B8: Employee Payroll | C8: =ProForma!C7 -> 0 | D8: =C8/Total_Units ->  | G8: =D8-F8 ->  | H8: =C8/'Unit Mix, Income, Timeline'!$G$28 ->  | J8: =H8-I8 -> 
B9: Repairs & Maintenance | C9: =ProForma!C8 -> 0 | H9: =C9/'Unit Mix, Income, Timeline'!$G$28 -> 
B10: Contracted Services | C10: =ProForma!C9 -> 0 | H10: =C10/'Unit Mix, Income, Timeline'!$G$28 -> 
B11: Electric & Gas Utilities | C11: =ProForma!C10 -> 0 | H11: =C11/'Unit Mix, Income, Timeline'!$G$28 -> 
B12: Water, Sewer & Trash Utilities | C12: =ProForma!C11 -> 0 | H12: =C12/'Unit Mix, Income, Timeline'!$G$28 -> 
B13: Leasing & Marketing | C13: =ProForma!C12 -> 0 | H13: =C13/'Unit Mix, Income, Timeline'!$G$28 -> 
B14: Property Insurance Premiums | C14: =ProForma!C13 -> 0 | H14: =C14/'Unit Mix, Income, Timeline'!$G$28 -> 
B15: Property Tax | C15: =ProForma!C14 -> 0 | H15: =C15/'Unit Mix, Income, Timeline'!$G$28 -> 
B16: Compliance Fees | C16: =ProForma!C15 -> 0 | H16: =C16/'Unit Mix, Income, Timeline'!$G$28 -> 
B17: Other Expenses (Describe) | C17: =ProForma!C16 -> 0 | H17: =C17/'Unit Mix, Income, Timeline'!$G$28 -> 
B18: Other Expenses (Describe) | C18: =ProForma!C17 -> 0 | H18: =C18/'Unit Mix, Income, Timeline'!$G$28 -> 
B19: Required Replacement Reserves | C19: =ProForma!C18 -> 0 | H19: =C19/'Unit Mix, Income, Timeline'!$G$28 -> 
B20: Required RR Per Unit

Sheet MFI&FMR (hidden)
B2: Source: | C2: HUD User FY24 Income Limits | F2: Area: | G2: Austin-Round Rock, TX MSA | L2: Source: | M2: HUD User FY25 Fair Market Rent (FMR) | P2: Area: | Q2: Austin-Round Rock, TX MSA
B3: Income by % of Median Family Income (MFI) and Number of Persons in Family | L3: MSA Fair Market Rents (FMRs) By Unit Bedrooms
C4: Persons in Family | M4: Bedrooms
B5: MFI Level | C5: 1 | D5: 2 | E5: 3 | F5: 4 | G5: 5 | H5: 6 | I5: 7 | J5: 8 | L5: Year | M5: 0 | N5: 1 | O5: 2 | P5: 3 | Q5: 4
B6: 0.3 | C6: =ROUND(($F6*C$16)/50, 0)*50 -> 26450 | D6: 30250 | E6: 34000 | F6: =ROUND((F$13*$B6)/50, 0)*50 -> 37800 | G6: =ROUND(($F6*G$16)/50, 0)*50 -> 40800 | H6: 43850 | I6: 46850 | J6: 49900 | L6: FY 2025 | M6: 1549 | N6: 1650 | O6: 1949 | P6: 2484 | Q6: 2882
B7: 0.4 | C7: 35300 | D7: 40300 | E7: 45350 | F7: =ROUND((F$13*$B7)/50, 0)*50 -> 50400 | G7: 54450 | H7: 58450 | I7: 62500 | J7: 66550
B8: 0.5 | C8: 44100 | D8: 50400 | E8: 56700 | F8: 63000 | G8: 68050 | H8: 73100 | I8: 78100 | J8: 83150 | P8: Small Area FMRs by Zip Code can be found here: | Q8: HUD User FY25 Small Area Fair Market Rent (FMR)
B9: 0.6 | C9: 52900 | D9: 60500 | E9: 68050 | F9: =ROUND((F$13*$B9)/50, 0)*50 -> 75600 | G9: 81650 | H9: 87700 | I9: 93750 | J9: 99800 | P9: Current Project Zip Code: | Q9: ='Unit Mix, Income, Timeline'!#REF! -> 
B10: 0.7 | C10: 61750 | D10: 70550 | E10: 79400 | F10: =ROUND((F$13*$B10)/50, 0)*50 -> 88200 | G10: 95250 | H10: 102300 | I10: 109350 | J10: 116400
B11: 0.8 | C11: 70550 | D11: 80650 | E11: 90700 | F11: 100800 | G11: 108850 | H11: 116950 | I11: 125000 | J11: 133050
B12: 0.9 | C12: 79400 | D12: 90700 | E12: 102050 | F12: 113400 | G12: 122450 | H12: 131550 | I12: 140600 | J12: 149700 | L12: Link to all HUD Datasets
B13: 1 | C13: =C8/0.5 -> 88200 | D13: 100800 | E13: =E8/0.5 -> 113400 | F13: 126000 | G13: 136100 | H13: =H8/0.5 -> 146200 | I13: 156200 | J13: 166300 | L13: HUD Datasets
B14: 1.1 | C14: =ROUND(($F14*C$16)/50, 0)*50 -> 97000 | D14: 110900 | E14: 124750 | F14: 138600 | G14: =ROUND(($F14*G$16)/50, 0)*50 -> 149700 | H14: 160800 | I14: 171850 | J14: 182950
B15: 1.2 | C15: 105850 | D15: 120950 | E15: 136100 | F15: 151200 | G15: 163300 | H15: 175400 | I15: 187500 | J15: 199600
C16: 0.7 | D16: 0.8 | E16: 0.9 | F16: 1 | G16: 1.08 | H16: 1.16 | I16: 1.24 | J16: 1.32
B18: Max Monthly Rent by MFI and Number of Persons in Family (based on 12 Months and 30% of Annual Income)
C19: Persons in Family
B20: MFI Level | C20: 1 | D20: 2 | E20: 3 | F20: 4 | G20: 5 | H20: 6 | I20: 7 | J20: 8
B21: 0.3 | C21: =(C6*30%)/12 -> 661.25 | D21: =(D6*30%)/12 -> 756.25 | E21: 850 | F21: 945 | G21: 1020 | H21: 1096.25 | I21: 1171.25 | J21: 1247.5
B22: 0.4 | C22: =(C7*30%)/12 -> 882.5 | D22: 1007.5 | E22: 1133.75 | F22: 1260 | G22: 1361.25 | H22: 1461.25 | I22: 1562.5 | J22: 1663.75
B23: 0.5 | C23: 1102.5 | D23: 1260 | E23: 1417.5 | F23: 1575 | G23: 1701.25 | H23: 1827.5 | I23: 1952.5 | J23: 2078.75
B24: 0.6 | C24: 1322.5 | D24: 1512.5 | E24: 1701.25 | F24: 1890 | G24: 2041.25 | H24: 2192.5 | I24: 2343.75 | J24: 2495
B25: 0.7 | C25: 1543.75 | D25: 1763.75 | E25: 1985 | F25: 2205 | G25: 2381.25 | H25: 2557.5 | I25: 2733.75 | J25: 2910
B26: 0.8 | C26: 1763.75 | D26: 2016.25 | E26: 2267.5 | F26: 2520 | G26: 2721.25 | H26: 2923.75 | I26: 3125 | J26: 3326.25
B27: 0.9 | C27: 1985 | D27: 2267.5 | E27: 2551.25 | F27: 2835 | G27: 3061.25 | H27: 3288.75 | I27: 3515 | J27: 3742.5
B28: 1 | C28: 2205 | D28: 2520 | E28: 2835 | F28: 3150 | G28: 3402.5 | H28: 3655 | I28: 3905 | J28: 4157.5
B29: 1.1 | C29: 2425 | D29: 2772.5 | E29: 3118.75 | F29: 3465 | G29: 3742.5 | H29: 4020 | I29: 4296.25 | J29: 4573.75
B30: 1.2 | C30: 2646.25 | D30: 3023.75 | E30: 3402.5 | F30: 3780 | G30: 4082.5 | H30: 4385 | I30: 4687.5 | J30: 4990
B32: Max Monthly Rent by MFI and Number of Bedrooms (based on 1.5 People per Bedroom)
C33: Calculated People (1.5*Bedrooms)
B34: MFI Level | C34: 1 | D34: 1.5 | E34: 3 | F34: 4.5 | H34: 6 | I34: 7.5
B35: Bedrooms: | C35: 0 | D35: 1 | E35: 2 | F35: 3 | H35: 4 | I35: 5
B36: 0.3 | C36: =C21 -> 661.25 | D36: =((C21+D21)/2) -> 708.75 | E36: =E21 -> 850 | F36: =((F21+G21)/2) -> 982.5 | H36: =H21 -> 1096.25 | I36: =((I21+J21)/2) -> 1209.375
B37: 0.4 | C37: =C22 -> 882.5 | D37: 945 | E37: =E22 -> 1133.75 | F37: 1310.625 | H37: =H22 -> 1461.25 | I37: 1613.125
B38: 0.5 | C38: 1102.5 | D38: 1181.25 | E38: 1417.5 | F38: 1638.125 | H38: 1827.5 | I38: 2015.625
B39: 0.6 | C39: 1322.5 | D39: =((C24+D24)/2) -> 1417.5 | E39: 1701.25 | F39: =((F24+G24)/2) -> 1965.625 | H39: 2192.5 | I39: =((I24+J24)/2) -> 2419.375
B40: 0.7 | C40: 1543.75 | D40: =((C25+D25)/2) -> 1653.75 | E40: 1985 | F40: =((F25+G25)/2) -> 2293.125 | H40: 2557.5 | I40: =((I25+J25)/2) -> 2821.875
B41: 0.8 | C41: 1763.75 | D41: 1890 | E41: 2267.5 | F41: 2620.625 | H41: 2923.75 | I41: 3225.625
B42: 0.9 | C42: 1985 | D42: 2126.25 | E42: 2551.25 | F42: 2948.125 | H42: 3288.75 | I42: 3628.75
B43: 1 | C43: 2205 | D43: 2362.5 | E43: 2835 | F43: 3276.25 | H43: 3655 | I43: 4031.25
B44: 1.1 | C44: 2425 | D44: 2598.75 | E44: 3118.75 | F44: 3603.75 | H44: 4020 | I44: 4435
B45: 1.2 | C45: 2646.25 | D45: 2835 | E45: 3402.5 | F45: 3931.25 | H45: 4385 | I45: 4838.75

Sheet LIHTC Calculator (hidden)
B2: LIHTC Estimate Calculation
B4: LIHTC Eligible Basis
B5: Eligible Development Costs | C5: ='Development Costs'!F63 -> 0
B6: Additional Ineligible (Grants, Other)
B7: Total LIHTC Eligible Basis: | C7: =SUM(C5:C6) -> 0
B9: Applicable Fraction Method
B10: Total LIHTC Units | C10: ='Unit Mix, Income, Timeline'!C29 -> 0
B11: Total Units | C11: =Total_Units -> 0
B12: LIHTC Unit % | C12: =IF(C11=0,0,C10/C11) -> 0
B14: Total LIHTC Square Feet | C14: ='Unit Mix, Income, Timeline'!G29 -> 0
B15: Total Square Feet | C15: ='Unit Mix, Income, Timeline'!G28 -> 0
B16: LIHTC Square Feet % | C16: =IF(C15=0,0,C14/C15) -> 0
B17: Applicable Fraction: | C17: =MIN(C12,C16) -> 0
B19: LIHTC Calculation
B20: Eligible Basis | C20: =C7 -> 0
B21: Applicable Fraction | C21: =C17 -> 0
B22: Basis Boost Factor
B23: Credit Type (4% or 9%) | C23: =IF('Unit Mix, Income, Timeline'!#REF!="N/A",0,'Unit Mix, Income, Timeline'!#REF!) -> 
B24: Annual Credits | C24: =C20*C21*C22*C23 -> 
B25: LIHTC Equity Price ($/credit)
B26: Total LIHTC Equity Estimate: | C26: =C24*C25*10 -> 
B28: Developer LIHTC Assumption: | C28: ='Sources & Uses'!K23 -> 0

Sheet Instructions
C2: Housing Development Assistiance Excel Document Instructions | R2: North Lamar Blvd | S2: 1.01
C3: 1) Fill in each light beige box, if applicable. | P3: 40 years | R3: Burnet Rd | S3: 1.02
C4: 2) Breakout each funding source, pro-forma and development expense with a description. | P4: 45 years | R4: Airport Blvd | S4: 2.03
C5: 3) Let staff know if you have formula errors or other issues with this spreadsheet. | H5: 100% Affordable | P5: 50 years | R5: East MLK/FM 969 | S5: 2.04
C6: 4) Once completed, attach it to the portal below | H6: Mixed-Income | P6: 55 years | R6: South Lamar Blvd | S6: 2.05
C7: Housing Development Assistance Application Submittal Portal | P7: 60 years | R7: East Riverside Dr | S7: 2.06
H8: New Construction | P8: 65 years | R8: Guadalupe St | S8: 3.02
H9: Rehabilitation | L9: 1/4 mile | P9: 70 years | R9: William Cannon Dr | S9: 3.04
L10: 1/2 mile | P10: 75 years | R10: Slaughter Ln | S10: 3.05
L11: 1 mile | P11: 80 years | R11: N Lamar & Guadalupe St | S11: 3.06
L12: > 1 mile | P12: 85 years | R12: Rundberg | S12: 3.07
P13: 90 years | R13: Colony Loop Dr | S13: 4.01
P14: 99 Years | R14: MLK Blvd | S14: 4.02
L15: Acquisition | R15: South Congress Ave | S15: 5
L16: Pre-development | R16: Manchaca Rd | S16: 6.01
L17: Construction | R17: S. Pleasant Valley Rd | S17: 6.03
S18: 6.04
S19: 7
R20: District 1 | S20: 8.01
R21: District 2 | S21: 8.02
R22: District 3 | S22: 8.03
R28: District 4 | S28: 8.04
O36: No
N38: No
H40: Yes | I40: 0.04 | R40: District 8 | S40: 11
H41: No | I41: 0.09 | R41: District 9 | S41: 12
R42: District 10 | S42: 13.03
S43: 13.04
S44: 13.05
R45: ADA MAE FAUBION EL | S45: 13.07
R46: ALLISON EL | S46: 13.08
R47: ALTAMIRA ACADEMY | S47: 14.01
R48: ANDERSON MILL EL | S48: 14.02
R49: ANDREWS EL | S49: 14.03
R50: ANNIE PURL EL | S50: 15.01
R51: AUSTIN DISCOVERY SCH | S51: 15.03
R52: AUSTIN ISD CHILD DEVELOPMENT CENTE | S52: 15.04
R53: BAGDAD EL | S53: 15.05
R54: BALDWIN EL | S54: 16.02
R55: BARANOFF EL | S55: 16.03
R56: BARRINGTON EL | S56: 16.04
R57: BARTON CREEK EL | S57: 16.05
R58: BARTON HILLS EL | S58: 16.06
R59: BATY EL | S59: 17.05
R60: BECKER EL | S60: 17.06
R61: BEE CAVE EL | S61: 17.07
R62: BILL BURDEN EL | S62: 17.12
R63: BLACKLAND PRAIRIE EL | S63: 17.13
R64: BLACKSHEAR EL | S64: 17.14
R65: BLAKE MANOR EL | S65: 17.16
R66: BLANTON EL | S66: 17.18
R67: BLAZIER EL | S67: 17.19
R68: BLOCK HOUSE CREEK EL | S68: 17.22
R69: BLUEBONNET EL | S69: 17.28
R70: BLUEBONNET TRAIL EL | S70: 17.29
R71: BOONE EL | S71: 17.37
R72: BRENTWOOD EL | S72: 17.38
R73: BRIDGE POINT EL | S73: 17.4
R74: BROOKE EL | S74: 17.42
R75: BROOKHOLLOW EL | S75: 17.45
R76: BROWN EL | S76: 17.46
R77: BRUSHY CREEK EL | S77: 17.47
R78: BRYKER WOODS EL | S78: 17.48
R79: C C MASON EL | S79: 17.49
R80: CACTUS RANCH EL | S80: 17.5
R81: CALDWELL EL | S81: 17.51
R82: CALDWELL HEIGHTS EL | S82: 17.52
R83: CAMPBELL EL | S83: 17.53
R84: CANYON CREEK EL | S84: 17.54
R85: CARVER EL | S85: 17.55
R86: CASEY EL | S86: 17.56
R87: CASIS EL | S87: 17.57
R88: CEDAR CREEK EL | S88: 17.6
R89: CEDARS INTERNATIONAL ACADEMY | S89: 17.61
R90: CHANDLER OAKS EL | S90: 17.65
R91: CHARLOTTE COX EL | S91: 17.69
R92: CHRISTINE CAMACHO EL | S92: 17.7
R93: CLAUDE BERKMAN EL | S93: 17.72
R94: CLAYTON EL | S94: 17.74
R95: COOK EL | S95: 17.75
R96: COPPERFIELD EL | S96: 17.76
R97: COTTONWOOD CREEK EL | S97: 17.77
R98: COUPLAND EL | S98: 17.81
R99: COWAN EL | S99: 17.82
R100: CREEDMOOR EL | S100: 17.83
R101: CUNNINGHAM EL | S101: 17.84
R102: CYPRESS EL | S102: 17.85
R103: DAEP- EL | S103: 17.86
R104: DAVIS EL | S104: 18.04
R105: DAWSON EL | S105: 18.05
R106: DEARING EL | S106: 18.06
R107: DECKER EL | S107: 18.11
R108: DEEPWOOD EL | S108: 18.12
R109: DEER CREEK EL | S109: 18.13
R110: DEL VALLE EL | S110: 18.17
R111: DELCO PRI | S111: 18.18
R112: DELL PICKETT EL | S112: 18.19
R113: DEPELCHIN-RICHMOND | S113: 18.2
R114: DESSAU EL | S114: 18.21
R115: DOBIE PK CENTER | S115: 18.22
R116: DOSS EL | S116: 18.23
R117: DOUBLE FILE TRAIL EL | S117: 18.24
R118: EANES EL | S118: 18.26
R119: EDEN PARK ACADEMY | S119: 18.28
R120: EL DAEP | S120: 18.29
R121: ELSA ENGLAND EL | S121: 18.32
R122: FERN BLUFF EL | S122: 18.33
R123: FLORENCE EL | S123: 18.34
R124: FOREST CREEK EL | S124: 18.35
R125: FOREST NORTH EL | S125: 18.39
R126: FOREST TRAIL EL | S126: 18.4
R127: FROST EL | S127: 18.41
R128: GALINDO EL | S128: 18.42
R129: GATTIS EL | S129: 18.43
R130: GEORGE M KOZMETSKY SCHOOL | S130: 18.44
R131: GOODWATER MONTESSORI SCHOOL | S131: 18.45
R132: GOVALLE EL | S132: 18.46
R133: GRAHAM EL | S133: 18.47
R134: GRANDVIEW HILLS EL | S134: 18.48
R135: GREAT OAKS EL | S135: 18.49
R136: GUERRERO THOMPSON | S136: 18.5
R137: GULLETT EL | S137: 18.51
R138: HARMONY SCHOOL OF INNOVATION - AUS | S138: 18.56
R139: HARMONY SCHOOL OF SCIENCE - AUSTIN | S139: 18.57
R140: HARMONY SCIENCE ACADEMY - AUSTIN | S140: 18.63
R141: HARMONY SCIENCE ACADEMY - CEDAR PA | S141: 18.64
R142: HARRIS EL | S142: 19.01
R143: HART EL | S143: 19.08
R144: HELPING HAND | S144: 19.1
R145: HIGHLAND PARK EL | S145: 19.11
R146: HIGHLAND PARK EL | S146: 19.12
R147: HILL EL | S147: 19.13
R148: HILLCREST EL | S148: 19.14
R149: HORNSBY-DUNLAP EL | S149: 19.15
R150: HOUSTON EL | S150: 19.17
R151: HOWARD NORMAN EL | S151: 19.18
R152: HUTTO EL | S152: 19.19
R153: JAMES E MITCHELL EL | S153: 20.02
R154: JARRELL EL | S154: 20.03
R155: JARRELL INT | S155: 20.04
R156: JIM PLAIN EL | S156: 20.05
R157: JO ANN FORD EL | S157: 21.04
R158: JOE LEE JOHNSON EL | S158: 21.05
R159: JOLLYVILLE EL | S159: 21.06
R160: JORDAN EL | S160: 21.07
R161: JOSEPH GILBERT EL | S161: 21.08
R162: JOSLIN EL | S162: 21.09
R163: KATHY CARAWAY EL | S163: 21.1
R164: KIKER EL | S164: 21.11
R165: KIPP AUSTIN COMUNIDAD | S165: 21.12
R166: KIPP AUSTIN CONNECTIONS EL | S166: 21.13
R167: KIPP AUSTIN LEADERSHIP EL | S167: 22.01
R168: KIPP AUSTIN OBRAS | S168: 22.02
R169: KOCUREK EL | S169: 22.07
R170: LAGO VISTA EL | S170: 22.08
R171: LAGO VISTA INT | S171: 22.09
R172: LAGOS EL | S172: 22.1
R173: LAKE POINTE EL | S173: 22.11
R174: LAKE TRAVIS EL | S174: 22.12
R175: LAKEWAY EL | S175: 23.04
R176: LANGFORD EL | S176: 23.07
R177: LAURA WELCH BUSH EL | S177: 23.08
R178: LAUREL MOUNTAIN EL | S178: 23.1
R179: LEE EL | S179: 23.12
R180: LIBERTY HILL EL | S180: 23.13
R181: LINDA HERRINGTON EL | S181: 23.14
R182: LINDER EL | S182: 23.15
R183: LIVE OAK EL | S183: 23.16
R184: LOIS F GIDDENS EL | S184: 23.17
R185: MAGNOLIA MONTESSORI FOR ALL | S185: 23.18
R186: MAIN STREET INT | S186: 23.19
R187: MANOR EL | S187: 24.02
R188: MAPLEWOOD EL | S188: 24.03
R189: MATHEWS EL | S189: 24.07
R190: MCBEE EL | S190: 24.09
R191: MENCHACA EL | S191: 24.1
R192: METZ EL | S192: 24.11
R193: MILLS EL | S193: 24.12
R194: MONTA JANE AKIN EL | S194: 24.13
R195: MOTT EL | S195: 24.19
R196: MURCHISON EL | S196: 24.21
R197: NADINE JOHNSON EL | S197: 24.22
R198: NAOMI PASEMANN EL | S198: 24.23
R199: NEW PRE-K CENTER | S199: 24.24
R200: NEYSA CALLISON EL | S200: 24.25
R201: NORMAN EL | S201: 24.26
R202: NORTHWEST EL | S202: 24.27
R203: NYOS - MAGNOLIA MCCULLOUGH CAMPUS | S203: 24.28
R204: OAK HILL EL | S204: 24.29
R205: OAK MEADOWS EL | S205: 24.3
R206: OAK SPRINGS EL | S206: 24.31
R207: ODOM EL | S207: 24.33
R208: OFFICER LEONARD A REED EL | S208: 24.34
R209: OLD TOWN EL | S209: 24.35
R210: OLYMPIA HILLS | S210: 25
R211: ORTEGA EL | S211: 203.11
R212: OVERTON EL | S212: 203.18
R213: PADRON EL | S213: 204.03
R214: PALM EL | S214: 204.04
R215: PARKSIDE EL | S215: 204.05
... 78 more rows

Sheet Project Overview
B2: RHDA Application for Gap Financing
B4: Project Information | F4: Developer Information
B6: Project Name | F6: Developer Name | T6: 40 years | V6: Burnet Rd | W6: 1.02
F7: Co-Developer (If applicable)
B8: Development Street Address | F8: Borrower (Legal Entity) Name
B9: City, State | C9: Austin, TX | F9: Developer Type (For or Non-Profit)
B10: Development Zip Code
B11: County | F11: Developer Contact Name
B13: Project Type | F13: Service Provider Name (If applicable for CoC units)
B14: Tenant Type | F14: Service Provider Contact Name
B15: Federal LIHTC Type
B16: Bond Mobility Corridor | F16: Continuum of Care (CoC) Units
B17: Census Tract | F17: Please define which CoC populations are applicable | G17: # Units | L17: 100% Affordable | T17: 50 years | V17: East MLK/FM 969 | W17: 2.04
B18: Council District | F18: Undefined mix of either Rapid Re-Housing (RRH) or Permanent Supportive Housing (PSH) units | L18: Rehabilitation | P18: 1/4 mile | T18: 70 years | V18: William Cannon Dr | W18: 3.04
B19: Elementary School
F20: Rapid Re-Housing (RRH) units | T20: 45 years | V20: Airport Blvd | W20: 2.03
B21: Affordability Period Requested (greater than or equal to 40 years) | F21: Permanent Supportive Housing (PSH) units
F22: Total CoC units | G22: =IF(SUM(G18:G21)=0,"") ->  | L22: Mixed-Income | T22: 55 years | V22: South Lamar Blvd | W22: 2.05
B23: Will SMART Housing fee waivers be utilized?* | T23: 60 years | V23: East Riverside Dr | W23: 2.06
B24: Will Affordability Unlocked be utilized? | F24: Accesible Units
B25: Will Tenant Relocation be Required | F25: Accessible Units for Mobility Impairments (Minimum 10% of total units)
B26: Is the property within 1/2 mile of an Imagine Austin Corridor? | F26: Accessible Units for Sensory Impairments (Minimum 2% of total units)
B27: Is the property within 1/4 mile of a High-Frequency Transit Stop?
B28: Is the property within 3/4 mile of Transit Service?
B29: Is the property within 1 mile of Healthy Food?
B30: *All new construction developments must submit a SMART Housing application.
B32: UNIT MIX | P32: 1/2 mile | T32: 75 years | V32: Slaughter Ln | W32: 3.05
B33: Description | C33: Type | D33: AMI | E33: # Units | G33: Size | P33: 1 mile | T33: 80 years | V33: N Lamar & Guadalupe St | W33: 3.06
B34: =IF(D34="","",IF(D34="MKT","Market Rate Units",IF(D34<=50%,"HDA Program Units","Affordable Housing Units"))) ->  | C34: =IF('Unit Mix, Income, Timeline'!D4="","",'Unit Mix, Income, Timeline'!D4&" Bed / "&'Unit Mix, Income, Timeline'!E4&" Bath") ->  | D34: =IF('Unit Mix, Income, Timeline'!B4="","",'Unit Mix, Income, Timeline'!B4) ->  | E34: =IF('Unit Mix, Income, Timeline'!C4="","",'Unit Mix, Income, Timeline'!C4) ->  | F34: =IF('Unit Mix, Income, Timeline'!L4="", "", 'Unit Mix, Income, Timeline'!L4) ->  | G34: =IF('Unit Mix, Income, Timeline'!F4="", "", 'Unit Mix, Income, Timeline'!F4&" ft"&CHAR(178)) ->  | P34: > 1 mile | T34: 85 years | V34: Rundberg | W34: 3.07
C35: =IF('Unit Mix, Income, Timeline'!D5="","",'Unit Mix, Income, Timeline'!D5&" Bed / "&'Unit Mix, Income, Timeline'!E5&" Bath") ->  | D35: =IF('Unit Mix, Income, Timeline'!B5="","",'Unit Mix, Income, Timeline'!B5) ->  | E35: =IF('Unit Mix, Income, Timeline'!C5="","",'Unit Mix, Income, Timeline'!C5) ->  | F35: =IF('Unit Mix, Income, Timeline'!L5="", "", 'Unit Mix, Income, Timeline'!L5) ->  | G35: =IF('Unit Mix, Income, Timeline'!F5="", "", 'Unit Mix, Income, Timeline'!F5&" ft"&CHAR(178)) ->  | T35: 90 years | V35: Colony Loop Dr | W35: 4.01
C36: =IF('Unit Mix, Income, Timeline'!D6="","",'Unit Mix, Income, Timeline'!D6&" Bed / "&'Unit Mix, Income, Timeline'!E6&" Bath") ->  | D36: =IF('Unit Mix, Income, Timeline'!B6="","",'Unit Mix, Income, Timeline'!B6) ->  | E36: =IF('Unit Mix, Income, Timeline'!C6="","",'Unit Mix, Income, Timeline'!C6) ->  | F36: =IF('Unit Mix, Income, Timeline'!L6="", "", 'Unit Mix, Income, Timeline'!L6) ->  | G36: =IF('Unit Mix, Income, Timeline'!F6="", "", 'Unit Mix, Income, Timeline'!F6&" ft"&CHAR(178)) ->  | T36: 99 Years | V36: MLK Blvd | W36: 4.02
C37: =IF('Unit Mix, Income, Timeline'!D7="","",'Unit Mix, Income, Timeline'!D7&" Bed / "&'Unit Mix, Income, Timeline'!E7&" Bath") ->  | D37: =IF('Unit Mix, Income, Timeline'!B7="","",'Unit Mix, Income, Timeline'!B7) ->  | E37: =IF('Unit Mix, Income, Timeline'!C7="","",'Unit Mix, Income, Timeline'!C7) ->  | F37: =IF('Unit Mix, Income, Timeline'!L7="", "", 'Unit Mix, Income, Timeline'!L7) ->  | G37: =IF('Unit Mix, Income, Timeline'!F7="", "", 'Unit Mix, Income, Timeline'!F7&" ft"&CHAR(178)) ->  | P37: Acquisition | V37: South Congress Ave | W37: 5
C38: =IF('Unit Mix, Income, Timeline'!D8="","",'Unit Mix, Income, Timeline'!D8&" Bed / "&'Unit Mix, Income, Timeline'!E8&" Bath") ->  | D38: =IF('Unit Mix, Income, Timeline'!B8="","",'Unit Mix, Income, Timeline'!B8) ->  | E38: =IF('Unit Mix, Income, Timeline'!C8="","",'Unit Mix, Income, Timeline'!C8) ->  | F38: =IF('Unit Mix, Income, Timeline'!L8="", "", 'Unit Mix, Income, Timeline'!L8) ->  | G38: =IF('Unit Mix, Income, Timeline'!F8="", "", 'Unit Mix, Income, Timeline'!F8&" ft"&CHAR(178)) ->  | P38: Pre-development | V38: Manchaca Rd | W38: 6.01
C39: =IF('Unit Mix, Income, Timeline'!D9="","",'Unit Mix, Income, Timeline'!D9&" Bed / "&'Unit Mix, Income, Timeline'!E9&" Bath") ->  | D39: =IF('Unit Mix, Income, Timeline'!B9="","",'Unit Mix, Income, Timeline'!B9) ->  | E39: =IF('Unit Mix, Income, Timeline'!C9="","",'Unit Mix, Income, Timeline'!C9) ->  | F39: =IF('Unit Mix, Income, Timeline'!L9="", "", 'Unit Mix, Income, Timeline'!L9) ->  | G39: =IF('Unit Mix, Income, Timeline'!F9="", "", 'Unit Mix, Income, Timeline'!F9&" ft"&CHAR(178)) ->  | P39: Construction | V39: S. Pleasant Valley Rd | W39: 6.03
C40: =IF('Unit Mix, Income, Timeline'!D10="","",'Unit Mix, Income, Timeline'!D10&" Bed / "&'Unit Mix, Income, Timeline'!E10&" Bath") ->  | D40: =IF('Unit Mix, Income, Timeline'!B10="","",'Unit Mix, Income, Timeline'!B10) ->  | E40: =IF('Unit Mix, Income, Timeline'!C10="","",'Unit Mix, Income, Timeline'!C10) ->  | F40: =IF('Unit Mix, Income, Timeline'!L10="", "", 'Unit Mix, Income, Timeline'!L10) ->  | G40: =IF('Unit Mix, Income, Timeline'!F10="", "", 'Unit Mix, Income, Timeline'!F10&" ft"&CHAR(178)) ->  | W40: 6.04
C41: =IF('Unit Mix, Income, Timeline'!D11="","",'Unit Mix, Income, Timeline'!D11&" Bed / "&'Unit Mix, Income, Timeline'!E11&" Bath") ->  | D41: =IF('Unit Mix, Income, Timeline'!B11="","",'Unit Mix, Income, Timeline'!B11) ->  | E41: =IF('Unit Mix, Income, Timeline'!C11="","",'Unit Mix, Income, Timeline'!C11) ->  | F41: =IF('Unit Mix, Income, Timeline'!L11="", "", 'Unit Mix, Income, Timeline'!L11) ->  | G41: =IF('Unit Mix, Income, Timeline'!F11="", "", 'Unit Mix, Income, Timeline'!F11&" ft"&CHAR(178)) ->  | W41: 7
C42: =IF('Unit Mix, Income, Timeline'!D12="","",'Unit Mix, Income, Timeline'!D12&" Bed / "&'Unit Mix, Income, Timeline'!E12&" Bath") ->  | D42: =IF('Unit Mix, Income, Timeline'!B12="","",'Unit Mix, Income, Timeline'!B12) ->  | E42: =IF('Unit Mix, Income, Timeline'!C12="","",'Unit Mix, Income, Timeline'!C12) ->  | F42: =IF('Unit Mix, Income, Timeline'!L12="", "", 'Unit Mix, Income, Timeline'!L12) ->  | G42: =IF('Unit Mix, Income, Timeline'!F12="", "", 'Unit Mix, Income, Timeline'!F12&" ft"&CHAR(178)) ->  | V42: District 1 | W42: 8.01
C43: =IF('Unit Mix, Income, Timeline'!D13="","",'Unit Mix, Income, Timeline'!D13&" Bed / "&'Unit Mix, Income, Timeline'!E13&" Bath") ->  | D43: =IF('Unit Mix, Income, Timeline'!B13="","",'Unit Mix, Income, Timeline'!B13) ->  | E43: =IF('Unit Mix, Income, Timeline'!C13="","",'Unit Mix, Income, Timeline'!C13) ->  | F43: =IF('Unit Mix, Income, Timeline'!L13="", "", 'Unit Mix, Income, Timeline'!L13) ->  | G43: =IF('Unit Mix, Income, Timeline'!F13="", "", 'Unit Mix, Income, Timeline'!F13&" ft"&CHAR(178)) ->  | V43: District 2 | W43: 8.02
C44: =IF('Unit Mix, Income, Timeline'!D14="","",'Unit Mix, Income, Timeline'!D14&" Bed / "&'Unit Mix, Income, Timeline'!E14&" Bath") ->  | D44: =IF('Unit Mix, Income, Timeline'!B14="","",'Unit Mix, Income, Timeline'!B14) ->  | E44: =IF('Unit Mix, Income, Timeline'!C14="","",'Unit Mix, Income, Timeline'!C14) ->  | F44: =IF('Unit Mix, Income, Timeline'!L14="", "", 'Unit Mix, Income, Timeline'!L14) ->  | G44: =IF('Unit Mix, Income, Timeline'!F14="", "", 'Unit Mix, Income, Timeline'!F14&" ft"&CHAR(178)) ->  | V44: District 3 | W44: 8.03
C45: =IF('Unit Mix, Income, Timeline'!D15="","",'Unit Mix, Income, Timeline'!D15&" Bed / "&'Unit Mix, Income, Timeline'!E15&" Bath") ->  | D45: =IF('Unit Mix, Income, Timeline'!B15="","",'Unit Mix, Income, Timeline'!B15) ->  | E45: =IF('Unit Mix, Income, Timeline'!C15="","",'Unit Mix, Income, Timeline'!C15) ->  | F45: =IF('Unit Mix, Income, Timeline'!L15="", "", 'Unit Mix, Income, Timeline'!L15) ->  | G45: =IF('Unit Mix, Income, Timeline'!F15="", "", 'Unit Mix, Income, Timeline'!F15&" ft"&CHAR(178)) ->  | V45: District 4
C46: =IF('Unit Mix, Income, Timeline'!D16="","",'Unit Mix, Income, Timeline'!D16&" Bed / "&'Unit Mix, Income, Timeline'!E16&" Bath") ->  | D46: =IF('Unit Mix, Income, Timeline'!B16="","",'Unit Mix, Income, Timeline'!B16) ->  | E46: =IF('Unit Mix, Income, Timeline'!C16="","",'Unit Mix, Income, Timeline'!C16) ->  | F46: =IF('Unit Mix, Income, Timeline'!L16="", "", 'Unit Mix, Income, Timeline'!L16) ->  | G46: =IF('Unit Mix, Income, Timeline'!F16="", "", 'Unit Mix, Income, Timeline'!F16&" ft"&CHAR(178)) ->  | V46: District 5
C47: =IF('Unit Mix, Income, Timeline'!D17="","",'Unit Mix, Income, Timeline'!D17&" Bed / "&'Unit Mix, Income, Timeline'!E17&" Bath") ->  | D47: =IF('Unit Mix, Income, Timeline'!B17="","",'Unit Mix, Income, Timeline'!B17) ->  | E47: =IF('Unit Mix, Income, Timeline'!C17="","",'Unit Mix, Income, Timeline'!C17) ->  | F47: =IF('Unit Mix, Income, Timeline'!L17="", "", 'Unit Mix, Income, Timeline'!L17) ->  | G47: =IF('Unit Mix, Income, Timeline'!F17="", "", 'Unit Mix, Income, Timeline'!F17&" ft"&CHAR(178)) ->  | V47: District 6
C48: =IF('Unit Mix, Income, Timeline'!D18="","",'Unit Mix, Income, Timeline'!D18&" Bed / "&'Unit Mix, Income, Timeline'!E18&" Bath") ->  | D48: =IF('Unit Mix, Income, Timeline'!B18="","",'Unit Mix, Income, Timeline'!B18) ->  | E48: =IF('Unit Mix, Income, Timeline'!C18="","",'Unit Mix, Income, Timeline'!C18) ->  | F48: =IF('Unit Mix, Income, Timeline'!L18="", "", 'Unit Mix, Income, Timeline'!L18) ->  | G48: =IF('Unit Mix, Income, Timeline'!F18="", "", 'Unit Mix, Income, Timeline'!F18&" ft"&CHAR(178)) ->  | V48: District 7
C49: =IF('Unit Mix, Income, Timeline'!D19="","",'Unit Mix, Income, Timeline'!D19&" Bed / "&'Unit Mix, Income, Timeline'!E19&" Bath") ->  | D49: =IF('Unit Mix, Income, Timeline'!B19="","",'Unit Mix, Income, Timeline'!B19) ->  | E49: =IF('Unit Mix, Income, Timeline'!C19="","",'Unit Mix, Income, Timeline'!C19) ->  | F49: =IF('Unit Mix, Income, Timeline'!L19="", "", 'Unit Mix, Income, Timeline'!L19) ->  | G49: =IF('Unit Mix, Income, Timeline'!F19="", "", 'Unit Mix, Income, Timeline'!F19&" ft"&CHAR(178)) ->  | V49: District 8
B50: Total / Wtd. Avg. | E50: =SUM(E34:E49) -> 0 | G50: ='Unit Mix, Income, Timeline'!G17&" ft"&CHAR(178) -> ft² | S50: No
R52: No
L54: Yes | M54: 0.04 | V54: District 9 | W54: 11
L55: No | M55: 0.09 | V55: District 10 | W55: 12
W56: 13.03
W57: 13.04
W58: 13.05
V59: ADA MAE FAUBION EL | W59: 13.07
V60: ALLISON EL | W60: 13.08
V61: ALTAMIRA ACADEMY | W61: 14.01
V62: ANDERSON MILL EL | W62: 14.02
V63: ANDREWS EL | W63: 14.03
V64: ANNIE PURL EL | W64: 15.01
V65: AUSTIN DISCOVERY SCH | W65: 15.03
V66: AUSTIN ISD CHILD DEVELOPMENT CENTE | W66: 15.04
V67: BAGDAD EL | W67: 15.05
V68: BALDWIN EL | W68: 16.02
V69: BARANOFF EL | W69: 16.03
V70: BARRINGTON EL | W70: 16.04
V71: BARTON CREEK EL | W71: 16.05
V72: BARTON HILLS EL | W72: 16.06
V73: BATY EL | W73: 17.05
V74: BECKER EL | W74: 17.06
V75: BEE CAVE EL | W75: 17.07
V76: BILL BURDEN EL | W76: 17.12
V77: BLACKLAND PRAIRIE EL | W77: 17.13
V78: BLACKSHEAR EL | W78: 17.14
V79: BLAKE MANOR EL | W79: 17.16
V80: BLANTON EL | W80: 17.18
V81: BLAZIER EL | W81: 17.19
V82: BLOCK HOUSE CREEK EL | W82: 17.22
V83: BLUEBONNET EL | W83: 17.28
V84: BLUEBONNET TRAIL EL | W84: 17.29
V85: BOONE EL | W85: 17.37
V86: BRENTWOOD EL | W86: 17.38
V87: BRIDGE POINT EL | W87: 17.4
V88: BROOKE EL | W88: 17.42
V89: BROOKHOLLOW EL | W89: 17.45
V90: BROWN EL | W90: 17.46
V91: BRUSHY CREEK EL | W91: 17.47
V92: BRYKER WOODS EL | W92: 17.48
V93: C C MASON EL | W93: 17.49
V94: CACTUS RANCH EL | W94: 17.5
V95: CALDWELL EL | W95: 17.51
V96: CALDWELL HEIGHTS EL | W96: 17.52
V97: CAMPBELL EL | W97: 17.53
V98: CANYON CREEK EL | W98: 17.54
V99: CARVER EL | W99: 17.55
V100: CASEY EL | W100: 17.56
V101: CASIS EL | W101: 17.57
V102: CEDAR CREEK EL | W102: 17.6
V103: CEDARS INTERNATIONAL ACADEMY | W103: 17.61
V104: CHANDLER OAKS EL | W104: 17.65
V105: CHARLOTTE COX EL | W105: 17.69
V106: CHRISTINE CAMACHO EL | W106: 17.7
V107: CLAUDE BERKMAN EL | W107: 17.72
V108: CLAYTON EL | W108: 17.74
V109: COOK EL | W109: 17.75
V110: COPPERFIELD EL | W110: 17.76
V111: COTTONWOOD CREEK EL | W111: 17.77
V112: COUPLAND EL | W112: 17.81
V113: COWAN EL | W113: 17.82
V114: CREEDMOOR EL | W114: 17.83
V115: CUNNINGHAM EL | W115: 17.84
V116: CYPRESS EL | W116: 17.85
V117: DAEP- EL | W117: 17.86
V118: DAVIS EL | W118: 18.04
V119: DAWSON EL | W119: 18.05
V120: DEARING EL | W120: 18.06
V121: DECKER EL | W121: 18.11
V122: DEEPWOOD EL | W122: 18.12
V123: DEER CREEK EL | W123: 18.13
V124: DEL VALLE EL | W124: 18.17
V125: DELCO PRI | W125: 18.18
V126: DELL PICKETT EL | W126: 18.19
V127: DEPELCHIN-RICHMOND | W127: 18.2
V128: DESSAU EL | W128: 18.21
V129: DOBIE PK CENTER | W129: 18.22
V130: DOSS EL | W130: 18.23
V131: DOUBLE FILE TRAIL EL | W131: 18.24
V132: EANES EL | W132: 18.26
V133: EDEN PARK ACADEMY | W133: 18.28
V134: EL DAEP | W134: 18.29
V135: ELSA ENGLAND EL | W135: 18.32
V136: FERN BLUFF EL | W136: 18.33
V137: FLORENCE EL | W137: 18.34
V138: FOREST CREEK EL | W138: 18.35
V139: FOREST NORTH EL | W139: 18.39
V140: FOREST TRAIL EL | W140: 18.4
V141: FROST EL | W141: 18.41
V142: GALINDO EL | W142: 18.42
V143: GATTIS EL | W143: 18.43
V144: GEORGE M KOZMETSKY SCHOOL | W144: 18.44
V145: GOODWATER MONTESSORI SCHOOL | W145: 18.45
V146: GOVALLE EL | W146: 18.46
V147: GRAHAM EL | W147: 18.47
V148: GRANDVIEW HILLS EL | W148: 18.48
V149: GREAT OAKS EL | W149: 18.49
V150: GUERRERO THOMPSON | W150: 18.5
V151: GULLETT EL | W151: 18.51
V152: HARMONY SCHOOL OF INNOVATION - AUS | W152: 18.56
V153: HARMONY SCHOOL OF SCIENCE - AUSTIN | W153: 18.57
V154: HARMONY SCIENCE ACADEMY - AUSTIN | W154: 18.63
V155: HARMONY SCIENCE ACADEMY - CEDAR PA | W155: 18.64
V156: HARRIS EL | W156: 19.01
V157: HART EL | W157: 19.08
V158: HELPING HAND | W158: 19.1
V159: HIGHLAND PARK EL | W159: 19.11
V160: HIGHLAND PARK EL | W160: 19.12
V161: HILL EL | W161: 19.13
V162: HILLCREST EL | W162: 19.14
V163: HORNSBY-DUNLAP EL | W163: 19.15
V164: HOUSTON EL | W164: 19.17
V165: HOWARD NORMAN EL | W165: 19.18
V166: HUTTO EL | W166: 19.19
V167: JAMES E MITCHELL EL | W167: 20.02
V168: JARRELL EL | W168: 20.03
V169: JARRELL INT | W169: 20.04
V170: JIM PLAIN EL | W170: 20.05
V171: JO ANN FORD EL | W171: 21.04
V172: JOE LEE JOHNSON EL | W172: 21.05
V173: JOLLYVILLE EL | W173: 21.06
V174: JORDAN EL | W174: 21.07
V175: JOSEPH GILBERT EL | W175: 21.08
V176: JOSLIN EL | W176: 21.09
V177: KATHY CARAWAY EL | W177: 21.1
V178: KIKER EL | W178: 21.11
V179: KIPP AUSTIN COMUNIDAD | W179: 21.12
V180: KIPP AUSTIN CONNECTIONS EL | W180: 21.13
V181: KIPP AUSTIN LEADERSHIP EL | W181: 22.01
V182: KIPP AUSTIN OBRAS | W182: 22.02
V183: KOCUREK EL | W183: 22.07
V184: LAGO VISTA EL | W184: 22.08
V185: LAGO VISTA INT | W185: 22.09
V186: LAGOS EL | W186: 22.1
V187: LAKE POINTE EL | W187: 22.11
V188: LAKE TRAVIS EL | W188: 22.12
V189: LAKEWAY EL | W189: 23.04
V190: LANGFORD EL | W190: 23.07
V191: LAURA WELCH BUSH EL | W191: 23.08
V192: LAUREL MOUNTAIN EL | W192: 23.1
V193: LEE EL | W193: 23.12
V194: LIBERTY HILL EL | W194: 23.13
V195: LINDA HERRINGTON EL | W195: 23.14
V196: LINDER EL | W196: 23.15
V197: LIVE OAK EL | W197: 23.16
V198: LOIS F GIDDENS EL | W198: 23.17
V199: MAGNOLIA MONTESSORI FOR ALL | W199: 23.18
V200: MAIN STREET INT | W200: 23.19
V201: MANOR EL | W201: 24.02
V202: MAPLEWOOD EL | W202: 24.03
V203: MATHEWS EL | W203: 24.07
V204: MCBEE EL | W204: 24.09
V205: MENCHACA EL | W205: 24.1
V206: METZ EL | W206: 24.11
V207: MILLS EL | W207: 24.12
... 100 more rows

Sheet Unit Mix, Income, Timeline
B2: Unit Mix | O2: Construction Timeline
B3: Median Family Income (MFI) | C3: Unit Count | D3: Bedrooms | E3: Bathrooms | F3: Per Unit Sq Ft | G3: Total Sq Ft Unit Type | H3: Fair Market Rent (FMR) | I3: Voucher Rents | J3: Max Allowable LIHTC Rent | K3: Utility Allowance | L3: Rent Collected per Unit | M3: Total Rent Collected per Unit Type | O3: Site Control | P3: Start Date | Q3: End Date
G4: =IF(F4="","",F4*C4) ->  | H4: =IF(D4="","",INDEX('MFI&FMR'!$M$6:$Q$6,MATCH('Unit Mix, Income, Timeline'!$D4,'MFI&FMR'!$M$5:$Q$5,0))) ->  | J4: =IF(OR(B4="",B4="MKT"),"",INDEX('MFI&FMR'!$B$35:$J$45,MATCH('Unit Mix, Income, Timeline'!$B4,'MFI&FMR'!$B$35:$B$45,0),MATCH('Unit Mix, Income, Timeline'!$D4,'MFI&FMR'!$B$35:$J$35,0))) ->  | M4: =IF(L4="","",L4*C4) ->  | O4: Acquisition | Q4: N/A
H5: =IF(D5="","",INDEX('MFI&FMR'!$M$6:$Q$6,MATCH('Unit Mix, Income, Timeline'!$D5,'MFI&FMR'!$M$5:$Q$5,0))) ->  | J5: =IF(OR(B5="",B5="MKT"),"",INDEX('MFI&FMR'!$B$35:$J$45,MATCH('Unit Mix, Income, Timeline'!$B5,'MFI&FMR'!$B$35:$B$45,0),MATCH('Unit Mix, Income, Timeline'!$D5,'MFI&FMR'!$B$35:$J$35,0))) ->  | O5: Zoning
H6: =IF(D6="","",INDEX('MFI&FMR'!$M$6:$Q$6,MATCH('Unit Mix, Income, Timeline'!$D6,'MFI&FMR'!$M$5:$Q$5,0))) ->  | J6: =IF(OR(B6="",B6="MKT"),"",INDEX('MFI&FMR'!$B$35:$J$45,MATCH('Unit Mix, Income, Timeline'!$B6,'MFI&FMR'!$B$35:$B$45,0),MATCH('Unit Mix, Income, Timeline'!$D6,'MFI&FMR'!$B$35:$J$35,0))) ->  | O6: Environmental Review
H7: =IF(D7="","",INDEX('MFI&FMR'!$M$6:$Q$6,MATCH('Unit Mix, Income, Timeline'!$D7,'MFI&FMR'!$M$5:$Q$5,0))) ->  | J7: =IF(OR(B7="",B7="MKT"),"",INDEX('MFI&FMR'!$B$35:$J$45,MATCH('Unit Mix, Income, Timeline'!$B7,'MFI&FMR'!$B$35:$B$45,0),MATCH('Unit Mix, Income, Timeline'!$D7,'MFI&FMR'!$B$35:$J$35,0))) ->  | O7: Pre-Development
H8: =IF(D8="","",INDEX('MFI&FMR'!$M$6:$Q$6,MATCH('Unit Mix, Income, Timeline'!$D8,'MFI&FMR'!$M$5:$Q$5,0))) ->  | J8: =IF(OR(B8="",B8="MKT"),"",INDEX('MFI&FMR'!$B$35:$J$45,MATCH('Unit Mix, Income, Timeline'!$B8,'MFI&FMR'!$B$35:$B$45,0),MATCH('Unit Mix, Income, Timeline'!$D8,'MFI&FMR'!$B$35:$J$35,0))) ->  | O8: Contract Execution | Q8: N/A
H9: =IF(D9="","",INDEX('MFI&FMR'!$M$6:$Q$6,MATCH('Unit Mix, Income, Timeline'!$D9,'MFI&FMR'!$M$5:$Q$5,0))) ->  | J9: =IF(OR(B9="",B9="MKT"),"",INDEX('MFI&FMR'!$B$35:$J$45,MATCH('Unit Mix, Income, Timeline'!$B9,'MFI&FMR'!$B$35:$B$45,0),MATCH('Unit Mix, Income, Timeline'!$D9,'MFI&FMR'!$B$35:$J$35,0))) ->  | O9: Closing of Other Financing
H10: =IF(D10="","",INDEX('MFI&FMR'!$M$6:$Q$6,MATCH('Unit Mix, Income, Timeline'!$D10,'MFI&FMR'!$M$5:$Q$5,0))) ->  | J10: =IF(OR(B10="",B10="MKT"),"",INDEX('MFI&FMR'!$B$35:$J$45,MATCH('Unit Mix, Income, Timeline'!$B10,'MFI&FMR'!$B$35:$B$45,0),MATCH('Unit Mix, Income, Timeline'!$D10,'MFI&FMR'!$B$35:$J$35,0))) ->  | O10: Development Services Review
H11: =IF(D11="","",INDEX('MFI&FMR'!$M$6:$Q$6,MATCH('Unit Mix, Income, Timeline'!$D11,'MFI&FMR'!$M$5:$Q$5,0))) ->  | J11: =IF(OR(B11="",B11="MKT"),"",INDEX('MFI&FMR'!$B$35:$J$45,MATCH('Unit Mix, Income, Timeline'!$B11,'MFI&FMR'!$B$35:$B$45,0),MATCH('Unit Mix, Income, Timeline'!$D11,'MFI&FMR'!$B$35:$J$35,0))) ->  | O11: Construction
H12: =IF(D12="","",INDEX('MFI&FMR'!$M$6:$Q$6,MATCH('Unit Mix, Income, Timeline'!$D12,'MFI&FMR'!$M$5:$Q$5,0))) ->  | J12: =IF(OR(B12="",B12="MKT"),"",INDEX('MFI&FMR'!$B$35:$J$45,MATCH('Unit Mix, Income, Timeline'!$B12,'MFI&FMR'!$B$35:$B$45,0),MATCH('Unit Mix, Income, Timeline'!$D12,'MFI&FMR'!$B$35:$J$35,0))) ->  | O12: Site Preparation
H13: =IF(D13="","",INDEX('MFI&FMR'!$M$6:$Q$6,MATCH('Unit Mix, Income, Timeline'!$D13,'MFI&FMR'!$M$5:$Q$5,0))) ->  | J13: =IF(OR(B13="",B13="MKT"),"",INDEX('MFI&FMR'!$B$35:$J$45,MATCH('Unit Mix, Income, Timeline'!$B13,'MFI&FMR'!$B$35:$B$45,0),MATCH('Unit Mix, Income, Timeline'!$D13,'MFI&FMR'!$B$35:$J$35,0))) ->  | O13: 25% Complete | Q13: N/A
H14: =IF(D14="","",INDEX('MFI&FMR'!$M$6:$Q$6,MATCH('Unit Mix, Income, Timeline'!$D14,'MFI&FMR'!$M$5:$Q$5,0))) ->  | J14: =IF(OR(B14="",B14="MKT"),"",INDEX('MFI&FMR'!$B$35:$J$45,MATCH('Unit Mix, Income, Timeline'!$B14,'MFI&FMR'!$B$35:$B$45,0),MATCH('Unit Mix, Income, Timeline'!$D14,'MFI&FMR'!$B$35:$J$35,0))) ->  | O14: 50% Complete | Q14: N/A
H15: =IF(D15="","",INDEX('MFI&FMR'!$M$6:$Q$6,MATCH('Unit Mix, Income, Timeline'!$D15,'MFI&FMR'!$M$5:$Q$5,0))) ->  | J15: =IF(OR(B15="",B15="MKT"),"",INDEX('MFI&FMR'!$B$35:$J$45,MATCH('Unit Mix, Income, Timeline'!$B15,'MFI&FMR'!$B$35:$B$45,0),MATCH('Unit Mix, Income, Timeline'!$D15,'MFI&FMR'!$B$35:$J$35,0))) ->  | O15: 75% Complete | Q15: N/A
H16: =IF(D16="","",INDEX('MFI&FMR'!$M$6:$Q$6,MATCH('Unit Mix, Income, Timeline'!$D16,'MFI&FMR'!$M$5:$Q$5,0))) ->  | J16: =IF(OR(B16="",B16="MKT"),"",INDEX('MFI&FMR'!$B$35:$J$45,MATCH('Unit Mix, Income, Timeline'!$B16,'MFI&FMR'!$B$35:$B$45,0),MATCH('Unit Mix, Income, Timeline'!$D16,'MFI&FMR'!$B$35:$J$35,0))) ->  | O16: 100% Complete | Q16: N/A
H17: =IF(D17="","",INDEX('MFI&FMR'!$M$6:$Q$6,MATCH('Unit Mix, Income, Timeline'!$D17,'MFI&FMR'!$M$5:$Q$5,0))) ->  | J17: =IF(OR(B17="",B17="MKT"),"",INDEX('MFI&FMR'!$B$35:$J$45,MATCH('Unit Mix, Income, Timeline'!$B17,'MFI&FMR'!$B$35:$B$45,0),MATCH('Unit Mix, Income, Timeline'!$D17,'MFI&FMR'!$B$35:$J$35,0))) ->  | O17: Marketing
H18: =IF(D18="","",INDEX('MFI&FMR'!$M$6:$Q$6,MATCH('Unit Mix, Income, Timeline'!$D18,'MFI&FMR'!$M$5:$Q$5,0))) ->  | J18: =IF(OR(B18="",B18="MKT"),"",INDEX('MFI&FMR'!$B$35:$J$45,MATCH('Unit Mix, Income, Timeline'!$B18,'MFI&FMR'!$B$35:$B$45,0),MATCH('Unit Mix, Income, Timeline'!$D18,'MFI&FMR'!$B$35:$J$35,0))) ->  | O18: Pre-Listing
H19: =IF(D19="","",INDEX('MFI&FMR'!$M$6:$Q$6,MATCH('Unit Mix, Income, Timeline'!$D19,'MFI&FMR'!$M$5:$Q$5,0))) ->  | J19: =IF(OR(B19="",B19="MKT"),"",INDEX('MFI&FMR'!$B$35:$J$45,MATCH('Unit Mix, Income, Timeline'!$B19,'MFI&FMR'!$B$35:$B$45,0),MATCH('Unit Mix, Income, Timeline'!$D19,'MFI&FMR'!$B$35:$J$35,0))) ->  | O19: Marketing Plan
H20: =IF(D20="","",INDEX('MFI&FMR'!$M$6:$Q$6,MATCH('Unit Mix, Income, Timeline'!$D20,'MFI&FMR'!$M$5:$Q$5,0))) ->  | J20: =IF(OR(B20="",B20="MKT"),"",INDEX('MFI&FMR'!$B$35:$J$45,MATCH('Unit Mix, Income, Timeline'!$B20,'MFI&FMR'!$B$35:$B$45,0),MATCH('Unit Mix, Income, Timeline'!$D20,'MFI&FMR'!$B$35:$J$35,0))) ->  | O20: Wait List Process
H21: =IF(D21="","",INDEX('MFI&FMR'!$M$6:$Q$6,MATCH('Unit Mix, Income, Timeline'!$D21,'MFI&FMR'!$M$5:$Q$5,0))) ->  | J21: =IF(OR(B21="",B21="MKT"),"",INDEX('MFI&FMR'!$B$35:$J$45,MATCH('Unit Mix, Income, Timeline'!$B21,'MFI&FMR'!$B$35:$B$45,0),MATCH('Unit Mix, Income, Timeline'!$D21,'MFI&FMR'!$B$35:$J$35,0))) ->  | O21: Leasing
H22: =IF(D22="","",INDEX('MFI&FMR'!$M$6:$Q$6,MATCH('Unit Mix, Income, Timeline'!$D22,'MFI&FMR'!$M$5:$Q$5,0))) ->  | J22: =IF(OR(B22="",B22="MKT"),"",INDEX('MFI&FMR'!$B$35:$J$45,MATCH('Unit Mix, Income, Timeline'!$B22,'MFI&FMR'!$B$35:$B$45,0),MATCH('Unit Mix, Income, Timeline'!$D22,'MFI&FMR'!$B$35:$J$35,0))) ->  | O22: Lease Up
H23: =IF(D23="","",INDEX('MFI&FMR'!$M$6:$Q$6,MATCH('Unit Mix, Income, Timeline'!$D23,'MFI&FMR'!$M$5:$Q$5,0))) ->  | J23: =IF(OR(B23="",B23="MKT"),"",INDEX('MFI&FMR'!$B$35:$J$45,MATCH('Unit Mix, Income, Timeline'!$B23,'MFI&FMR'!$B$35:$B$45,0),MATCH('Unit Mix, Income, Timeline'!$D23,'MFI&FMR'!$B$35:$J$35,0))) ->  | O23: Close Out
H24: =IF(D24="","",INDEX('MFI&FMR'!$M$6:$Q$6,MATCH('Unit Mix, Income, Timeline'!$D24,'MFI&FMR'!$M$5:$Q$5,0))) ->  | J24: =IF(OR(B24="",B24="MKT"),"",INDEX('MFI&FMR'!$B$35:$J$45,MATCH('Unit Mix, Income, Timeline'!$B24,'MFI&FMR'!$B$35:$B$45,0),MATCH('Unit Mix, Income, Timeline'!$D24,'MFI&FMR'!$B$35:$J$35,0))) -> 
H25: =IF(D25="","",INDEX('MFI&FMR'!$M$6:$Q$6,MATCH('Unit Mix, Income, Timeline'!$D25,'MFI&FMR'!$M$5:$Q$5,0))) ->  | J25: =IF(OR(B25="",B25="MKT"),"",INDEX('MFI&FMR'!$B$35:$J$45,MATCH('Unit Mix, Income, Timeline'!$B25,'MFI&FMR'!$B$35:$B$45,0),MATCH('Unit Mix, Income, Timeline'!$D25,'MFI&FMR'!$B$35:$J$35,0))) -> 
H26: =IF(D26="","",INDEX('MFI&FMR'!$M$6:$Q$6,MATCH('Unit Mix, Income, Timeline'!$D26,'MFI&FMR'!$M$5:$Q$5,0))) ->  | J26: =IF(OR(B26="",B26="MKT"),"",INDEX('MFI&FMR'!$B$35:$J$45,MATCH('Unit Mix, Income, Timeline'!$B26,'MFI&FMR'!$B$35:$B$45,0),MATCH('Unit Mix, Income, Timeline'!$D26,'MFI&FMR'!$B$35:$J$35,0))) -> 
H27: =IF(D27="","",INDEX('MFI&FMR'!$M$6:$Q$6,MATCH('Unit Mix, Income, Timeline'!$D27,'MFI&FMR'!$M$5:$Q$5,0))) ->  | J27: =IF(OR(B27="",B27="MKT"),"",INDEX('MFI&FMR'!$B$35:$J$45,MATCH('Unit Mix, Income, Timeline'!$B27,'MFI&FMR'!$B$35:$B$45,0),MATCH('Unit Mix, Income, Timeline'!$D27,'MFI&FMR'!$B$35:$J$35,0))) -> 
B28: Total Units: | C28: =SUM(C4:C27) -> 0 | E28: Total Square Footage: | G28: =SUM(G4:G27) -> 0 | K28: Total Potential Monthly Rent: | M28: =SUM(M4:M27) -> 0
B29: " Affordable: | C29: =Total_Units-C31 -> 0 | E29: " Affordable: | G29: =G28-G31 -> 0 | K29: " Affordable: | M29: =M28-M31 -> 0
B30: " HDA Program: | C30: =SUMIF(B4:B27, "<= 50%", C4:C27) -> 0 | E30: " HDA Program: | G30: =SUMIF(B4:B27, "<= 50%", G4:G27) -> 0 | K30: " HDA Program: | M30: =SUMIF(B4:B27, "<= 50%", M4:M27) -> 0
B31: " Market Rate: | C31: =SUMIF(B4:B27, "MKT", C4:C27) -> 0 | E31: " Market Rate: | G31: =SUMIF(B4:B27, "MKT", G4:G27) -> 0 | K31: " Market Rate: | M31: =SUMIF(B4:B27,"MKT", M4:M27) -> 0
K32: Total Potential Annual Rent: | M32: =M28*12 -> 0
K33: " Affordable: | M33: =M29*12 -> 0
K34: " HDA Program: | M34: =M30*12 -> 0
K35: " Market Rate: | M35: =M31*12 -> 0
B37: UNIT MIX | I37: Average Square Foot AHFC Units at or Below 50% MFI
B38: Description | C38: Type | D38: AMI | E38: # Units | F38: Contract Rent | H38: Size | I38: Sudio/Efficiency | J38: 1-bdrm | K38: 2-bdrm | L38: 3-bdrm | M38: 4-bdrm
B39: =IF(D39="","",IF(D39="MKT","Market Rate Units",IF(D39<=50%,"HDA Program Units","Affordable Housing Units"))) ->  | C39: =IF('Unit Mix, Income, Timeline'!D4="","",'Unit Mix, Income, Timeline'!D4&" Bed / "&'Unit Mix, Income, Timeline'!E4&" Bath") ->  | D39: =IF('Unit Mix, Income, Timeline'!B4="","",'Unit Mix, Income, Timeline'!B4) ->  | E39: =IF('Unit Mix, Income, Timeline'!C4="","",'Unit Mix, Income, Timeline'!C4) ->  | F39: =IF('Unit Mix, Income, Timeline'!L4="", "", 'Unit Mix, Income, Timeline'!L4) ->  | H39: =IF('Unit Mix, Income, Timeline'!F4="", "", 'Unit Mix, Income, Timeline'!F4&" ft"&CHAR(178)) ->  | I39: =IFERROR(SUM(SUMIFS($G$4:$G$27,$B$4:$B$27,$AA$41:$AA$49,$D$4:$D$27,$AB$41))/SUM(SUMIFS($C$4:$C$27,$B$4:$B$27,$AA$41:$AA$49,$D$4:$D$27,$AB$41)),"") ->  | J39: =IFERROR(SUM(SUMIFS($G$4:$G$27,$B$4:$B$27,$AA$41:$AA$49,$D$4:$D$27,$AB$42))/SUM(SUMIFS($C$4:$C$27,$B$4:$B$27,$AA$41:$AA$49,$D$4:$D$27,$AB$42)),"") ->  | K39: =IFERROR(SUM(SUMIFS($G$4:$G$27,$B$4:$B$27,$AA$41:$AA$49,$D$4:$D$27,$AB$43))/SUM(SUMIFS($C$4:$C$27,$B$4:$B$27,$AA$41:$AA$49,$D$4:$D$27,$AB$43)),"") ->  | L39: =IFERROR(SUM(SUMIFS($G$4:$G$27,$B$4:$B$27,$AA$41:$AA$49,$D$4:$D$27,$AB$44))/SUM(SUMIFS($C$4:$C$27,$B$4:$B$27,$AA$41:$AA$49,$D$4:$D$27,$AB$44)),"") ->  | M39: =IFERROR(SUM(SUMIFS($G$4:$G$27,$B$4:$B$27,$AA$41:$AA$49,$D$4:$D$27,$AB$45))/SUM(SUMIFS($C$4:$C$27,$B$4:$B$27,$AA$41:$AA$49,$D$4:$D$27,$AB$45)),"") -> 
C40: =IF('Unit Mix, Income, Timeline'!D5="","",'Unit Mix, Income, Timeline'!D5&" Bed / "&'Unit Mix, Income, Timeline'!E5&" Bath") ->  | D40: =IF('Unit Mix, Income, Timeline'!B5="","",'Unit Mix, Income, Timeline'!B5) ->  | E40: =IF('Unit Mix, Income, Timeline'!C5="","",'Unit Mix, Income, Timeline'!C5) ->  | F40: =IF('Unit Mix, Income, Timeline'!L5="", "", 'Unit Mix, Income, Timeline'!L5) ->  | H40: =IF('Unit Mix, Income, Timeline'!F5="", "", 'Unit Mix, Income, Timeline'!F5&" ft"&CHAR(178)) -> 
C41: =IF('Unit Mix, Income, Timeline'!D6="","",'Unit Mix, Income, Timeline'!D6&" Bed / "&'Unit Mix, Income, Timeline'!E6&" Bath") ->  | D41: =IF('Unit Mix, Income, Timeline'!B6="","",'Unit Mix, Income, Timeline'!B6) ->  | E41: =IF('Unit Mix, Income, Timeline'!C6="","",'Unit Mix, Income, Timeline'!C6) ->  | F41: =IF('Unit Mix, Income, Timeline'!L6="", "", 'Unit Mix, Income, Timeline'!L6) ->  | H41: =IF('Unit Mix, Income, Timeline'!F6="", "", 'Unit Mix, Income, Timeline'!F6&" ft"&CHAR(178)) ->  | AA41: 0.3 | AB41: 0
C42: =IF('Unit Mix, Income, Timeline'!D7="","",'Unit Mix, Income, Timeline'!D7&" Bed / "&'Unit Mix, Income, Timeline'!E7&" Bath") ->  | D42: =IF('Unit Mix, Income, Timeline'!B7="","",'Unit Mix, Income, Timeline'!B7) ->  | E42: =IF('Unit Mix, Income, Timeline'!C7="","",'Unit Mix, Income, Timeline'!C7) ->  | F42: =IF('Unit Mix, Income, Timeline'!L7="", "", 'Unit Mix, Income, Timeline'!L7) ->  | H42: =IF('Unit Mix, Income, Timeline'!F7="", "", 'Unit Mix, Income, Timeline'!F7&" ft"&CHAR(178)) ->  | AA42: 0.4 | AB42: 1
C43: =IF('Unit Mix, Income, Timeline'!D8="","",'Unit Mix, Income, Timeline'!D8&" Bed / "&'Unit Mix, Income, Timeline'!E8&" Bath") ->  | D43: =IF('Unit Mix, Income, Timeline'!B8="","",'Unit Mix, Income, Timeline'!B8) ->  | E43: =IF('Unit Mix, Income, Timeline'!C8="","",'Unit Mix, Income, Timeline'!C8) ->  | F43: =IF('Unit Mix, Income, Timeline'!L8="", "", 'Unit Mix, Income, Timeline'!L8) ->  | H43: =IF('Unit Mix, Income, Timeline'!F8="", "", 'Unit Mix, Income, Timeline'!F8&" ft"&CHAR(178)) ->  | AA43: 0.5 | AB43: 2
C44: =IF('Unit Mix, Income, Timeline'!D9="","",'Unit Mix, Income, Timeline'!D9&" Bed / "&'Unit Mix, Income, Timeline'!E9&" Bath") ->  | D44: =IF('Unit Mix, Income, Timeline'!B9="","",'Unit Mix, Income, Timeline'!B9) ->  | E44: =IF('Unit Mix, Income, Timeline'!C9="","",'Unit Mix, Income, Timeline'!C9) ->  | F44: =IF('Unit Mix, Income, Timeline'!L9="", "", 'Unit Mix, Income, Timeline'!L9) ->  | H44: =IF('Unit Mix, Income, Timeline'!F9="", "", 'Unit Mix, Income, Timeline'!F9&" ft"&CHAR(178)) ->  | AA44: 30% CoC | AB44: 3
C45: =IF('Unit Mix, Income, Timeline'!D10="","",'Unit Mix, Income, Timeline'!D10&" Bed / "&'Unit Mix, Income, Timeline'!E10&" Bath") ->  | D45: =IF('Unit Mix, Income, Timeline'!B10="","",'Unit Mix, Income, Timeline'!B10) ->  | E45: =IF('Unit Mix, Income, Timeline'!C10="","",'Unit Mix, Income, Timeline'!C10) ->  | F45: =IF('Unit Mix, Income, Timeline'!L10="", "", 'Unit Mix, Income, Timeline'!L10) ->  | H45: =IF('Unit Mix, Income, Timeline'!F10="", "", 'Unit Mix, Income, Timeline'!F10&" ft"&CHAR(178)) ->  | AA45: 40% CoC | AB45: 4
C46: =IF('Unit Mix, Income, Timeline'!D11="","",'Unit Mix, Income, Timeline'!D11&" Bed / "&'Unit Mix, Income, Timeline'!E11&" Bath") ->  | D46: =IF('Unit Mix, Income, Timeline'!B11="","",'Unit Mix, Income, Timeline'!B11) ->  | E46: =IF('Unit Mix, Income, Timeline'!C11="","",'Unit Mix, Income, Timeline'!C11) ->  | F46: =IF('Unit Mix, Income, Timeline'!L11="", "", 'Unit Mix, Income, Timeline'!L11) ->  | H46: =IF('Unit Mix, Income, Timeline'!F11="", "", 'Unit Mix, Income, Timeline'!F11&" ft"&CHAR(178)) ->  | AA46: 50% CoC
C47: =IF('Unit Mix, Income, Timeline'!D12="","",'Unit Mix, Income, Timeline'!D12&" Bed / "&'Unit Mix, Income, Timeline'!E12&" Bath") ->  | D47: =IF('Unit Mix, Income, Timeline'!B12="","",'Unit Mix, Income, Timeline'!B12) ->  | E47: =IF('Unit Mix, Income, Timeline'!C12="","",'Unit Mix, Income, Timeline'!C12) ->  | F47: =IF('Unit Mix, Income, Timeline'!L12="", "", 'Unit Mix, Income, Timeline'!L12) ->  | H47: =IF('Unit Mix, Income, Timeline'!F12="", "", 'Unit Mix, Income, Timeline'!F12&" ft"&CHAR(178)) ->  | AA47: 30% PSH
C48: =IF('Unit Mix, Income, Timeline'!D13="","",'Unit Mix, Income, Timeline'!D13&" Bed / "&'Unit Mix, Income, Timeline'!E13&" Bath") ->  | D48: =IF('Unit Mix, Income, Timeline'!B13="","",'Unit Mix, Income, Timeline'!B13) ->  | E48: =IF('Unit Mix, Income, Timeline'!C13="","",'Unit Mix, Income, Timeline'!C13) ->  | F48: =IF('Unit Mix, Income, Timeline'!L13="", "", 'Unit Mix, Income, Timeline'!L13) ->  | H48: =IF('Unit Mix, Income, Timeline'!F13="", "", 'Unit Mix, Income, Timeline'!F13&" ft"&CHAR(178)) ->  | AA48: 40% PSH
C49: =IF('Unit Mix, Income, Timeline'!D14="","",'Unit Mix, Income, Timeline'!D14&" Bed / "&'Unit Mix, Income, Timeline'!E14&" Bath") ->  | D49: =IF('Unit Mix, Income, Timeline'!B14="","",'Unit Mix, Income, Timeline'!B14) ->  | E49: =IF('Unit Mix, Income, Timeline'!C14="","",'Unit Mix, Income, Timeline'!C14) ->  | F49: =IF('Unit Mix, Income, Timeline'!L14="", "", 'Unit Mix, Income, Timeline'!L14) ->  | H49: =IF('Unit Mix, Income, Timeline'!F14="", "", 'Unit Mix, Income, Timeline'!F14&" ft"&CHAR(178)) ->  | AA49: 50% PSH
C50: =IF('Unit Mix, Income, Timeline'!D15="","",'Unit Mix, Income, Timeline'!D15&" Bed / "&'Unit Mix, Income, Timeline'!E15&" Bath") ->  | D50: =IF('Unit Mix, Income, Timeline'!B15="","",'Unit Mix, Income, Timeline'!B15) ->  | E50: =IF('Unit Mix, Income, Timeline'!C15="","",'Unit Mix, Income, Timeline'!C15) ->  | F50: =IF('Unit Mix, Income, Timeline'!L15="", "", 'Unit Mix, Income, Timeline'!L15) ->  | H50: =IF('Unit Mix, Income, Timeline'!F15="", "", 'Unit Mix, Income, Timeline'!F15&" ft"&CHAR(178)) -> 
C51: =IF('Unit Mix, Income, Timeline'!D16="","",'Unit Mix, Income, Timeline'!D16&" Bed / "&'Unit Mix, Income, Timeline'!E16&" Bath") ->  | D51: =IF('Unit Mix, Income, Timeline'!B16="","",'Unit Mix, Income, Timeline'!B16) ->  | E51: =IF('Unit Mix, Income, Timeline'!C16="","",'Unit Mix, Income, Timeline'!C16) ->  | F51: =IF('Unit Mix, Income, Timeline'!L16="", "", 'Unit Mix, Income, Timeline'!L16) ->  | H51: =IF('Unit Mix, Income, Timeline'!F16="", "", 'Unit Mix, Income, Timeline'!F16&" ft"&CHAR(178)) -> 
C52: =IF('Unit Mix, Income, Timeline'!D17="","",'Unit Mix, Income, Timeline'!D17&" Bed / "&'Unit Mix, Income, Timeline'!E17&" Bath") ->  | D52: =IF('Unit Mix, Income, Timeline'!B17="","",'Unit Mix, Income, Timeline'!B17) ->  | E52: =IF('Unit Mix, Income, Timeline'!C17="","",'Unit Mix, Income, Timeline'!C17) ->  | F52: =IF('Unit Mix, Income, Timeline'!L17="", "", 'Unit Mix, Income, Timeline'!L17) ->  | H52: =IF('Unit Mix, Income, Timeline'!F17="", "", 'Unit Mix, Income, Timeline'!F17&" ft"&CHAR(178)) -> 
C53: =IF('Unit Mix, Income, Timeline'!D18="","",'Unit Mix, Income, Timeline'!D18&" Bed / "&'Unit Mix, Income, Timeline'!E18&" Bath") ->  | D53: =IF('Unit Mix, Income, Timeline'!B18="","",'Unit Mix, Income, Timeline'!B18) ->  | E53: =IF('Unit Mix, Income, Timeline'!C18="","",'Unit Mix, Income, Timeline'!C18) ->  | F53: =IF('Unit Mix, Income, Timeline'!L18="", "", 'Unit Mix, Income, Timeline'!L18) ->  | H53: =IF('Unit Mix, Income, Timeline'!F18="", "", 'Unit Mix, Income, Timeline'!F18&" ft"&CHAR(178)) -> 
C54: =IF('Unit Mix, Income, Timeline'!D19="","",'Unit Mix, Income, Timeline'!D19&" Bed / "&'Unit Mix, Income, Timeline'!E19&" Bath") ->  | D54: =IF('Unit Mix, Income, Timeline'!B19="","",'Unit Mix, Income, Timeline'!B19) ->  | E54: =IF('Unit Mix, Income, Timeline'!C19="","",'Unit Mix, Income, Timeline'!C19) ->  | F54: =IF('Unit Mix, Income, Timeline'!L19="", "", 'Unit Mix, Income, Timeline'!L19) ->  | H54: =IF('Unit Mix, Income, Timeline'!F19="", "", 'Unit Mix, Income, Timeline'!F19&" ft"&CHAR(178)) -> 
C55: =IF('Unit Mix, Income, Timeline'!D20="","",'Unit Mix, Income, Timeline'!D20&" Bed / "&'Unit Mix, Income, Timeline'!E20&" Bath") ->  | D55: =IF('Unit Mix, Income, Timeline'!B20="","",'Unit Mix, Income, Timeline'!B20) ->  | E55: =IF('Unit Mix, Income, Timeline'!C20="","",'Unit Mix, Income, Timeline'!C20) ->  | F55: =IF('Unit Mix, Income, Timeline'!L20="", "", 'Unit Mix, Income, Timeline'!L20) ->  | H55: =IF('Unit Mix, Income, Timeline'!F20="", "", 'Unit Mix, Income, Timeline'!F20&" ft"&CHAR(178)) -> 
C56: =IF('Unit Mix, Income, Timeline'!D21="","",'Unit Mix, Income, Timeline'!D21&" Bed / "&'Unit Mix, Income, Timeline'!E21&" Bath") ->  | D56: =IF('Unit Mix, Income, Timeline'!B21="","",'Unit Mix, Income, Timeline'!B21) ->  | E56: =IF('Unit Mix, Income, Timeline'!C21="","",'Unit Mix, Income, Timeline'!C21) ->  | F56: =IF('Unit Mix, Income, Timeline'!L21="", "", 'Unit Mix, Income, Timeline'!L21) ->  | H56: =IF('Unit Mix, Income, Timeline'!F21="", "", 'Unit Mix, Income, Timeline'!F21&" ft"&CHAR(178)) -> 
C57: =IF('Unit Mix, Income, Timeline'!D22="","",'Unit Mix, Income, Timeline'!D22&" Bed / "&'Unit Mix, Income, Timeline'!E22&" Bath") ->  | D57: =IF('Unit Mix, Income, Timeline'!B22="","",'Unit Mix, Income, Timeline'!B22) ->  | E57: =IF('Unit Mix, Income, Timeline'!C22="","",'Unit Mix, Income, Timeline'!C22) ->  | F57: =IF('Unit Mix, Income, Timeline'!L22="", "", 'Unit Mix, Income, Timeline'!L22) ->  | H57: =IF('Unit Mix, Income, Timeline'!F22="", "", 'Unit Mix, Income, Timeline'!F22&" ft"&CHAR(178)) -> 
C58: =IF('Unit Mix, Income, Timeline'!D23="","",'Unit Mix, Income, Timeline'!D23&" Bed / "&'Unit Mix, Income, Timeline'!E23&" Bath") ->  | D58: =IF('Unit Mix, Income, Timeline'!B23="","",'Unit Mix, Income, Timeline'!B23) ->  | E58: =IF('Unit Mix, Income, Timeline'!C23="","",'Unit Mix, Income, Timeline'!C23) ->  | F58: =IF('Unit Mix, Income, Timeline'!L23="", "", 'Unit Mix, Income, Timeline'!L23) ->  | H58: =IF('Unit Mix, Income, Timeline'!F23="", "", 'Unit Mix, Income, Timeline'!F23&" ft"&CHAR(178)) -> 
C59: =IF('Unit Mix, Income, Timeline'!D24="","",'Unit Mix, Income, Timeline'!D24&" Bed / "&'Unit Mix, Income, Timeline'!E24&" Bath") ->  | D59: =IF('Unit Mix, Income, Timeline'!B24="","",'Unit Mix, Income, Timeline'!B24) ->  | E59: =IF('Unit Mix, Income, Timeline'!C24="","",'Unit Mix, Income, Timeline'!C24) ->  | F59: =IF('Unit Mix, Income, Timeline'!L24="", "", 'Unit Mix, Income, Timeline'!L24) ->  | H59: =IF('Unit Mix, Income, Timeline'!F24="", "", 'Unit Mix, Income, Timeline'!F24&" ft"&CHAR(178)) -> 
C60: =IF('Unit Mix, Income, Timeline'!D25="","",'Unit Mix, Income, Timeline'!D25&" Bed / "&'Unit Mix, Income, Timeline'!E25&" Bath") ->  | D60: =IF('Unit Mix, Income, Timeline'!B25="","",'Unit Mix, Income, Timeline'!B25) ->  | E60: =IF('Unit Mix, Income, Timeline'!C25="","",'Unit Mix, Income, Timeline'!C25) ->  | F60: =IF('Unit Mix, Income, Timeline'!L25="", "", 'Unit Mix, Income, Timeline'!L25) ->  | H60: =IF('Unit Mix, Income, Timeline'!F25="", "", 'Unit Mix, Income, Timeline'!F25&" ft"&CHAR(178)) -> 
C61: =IF('Unit Mix, Income, Timeline'!D26="","",'Unit Mix, Income, Timeline'!D26&" Bed / "&'Unit Mix, Income, Timeline'!E26&" Bath") ->  | D61: =IF('Unit Mix, Income, Timeline'!B26="","",'Unit Mix, Income, Timeline'!B26) ->  | E61: =IF('Unit Mix, Income, Timeline'!C26="","",'Unit Mix, Income, Timeline'!C26) ->  | F61: =IF('Unit Mix, Income, Timeline'!L26="", "", 'Unit Mix, Income, Timeline'!L26) ->  | H61: =IF('Unit Mix, Income, Timeline'!F26="", "", 'Unit Mix, Income, Timeline'!F26&" ft"&CHAR(178)) -> 
C62: =IF('Unit Mix, Income, Timeline'!D27="","",'Unit Mix, Income, Timeline'!D27&" Bed / "&'Unit Mix, Income, Timeline'!E27&" Bath") ->  | D62: =IF('Unit Mix, Income, Timeline'!B27="","",'Unit Mix, Income, Timeline'!B27) ->  | E62: =IF('Unit Mix, Income, Timeline'!C27="","",'Unit Mix, Income, Timeline'!C27) ->  | F62: =IF('Unit Mix, Income, Timeline'!L27="", "", 'Unit Mix, Income, Timeline'!L27) ->  | H62: =IF('Unit Mix, Income, Timeline'!F27="", "", 'Unit Mix, Income, Timeline'!F27&" ft"&CHAR(178)) -> 
B63: Total / Wtd. Avg. | E63: =SUM(E39:E62) -> 0 | F63: =SUMPRODUCT(E39:E62,G39:G62)/E63 ->  | H63: ='Unit Mix, Income, Timeline'!G28&" ft"&CHAR(178) -> 0 ft²

Sheet Sources & Uses
B2: Sources | M2: Sources (Permanent Phase) | P2: Uses
B3: Hard Debt Service Financing | F3: Construction Period | H3: Permanent Period | M3: Financing Sources* | P3: Development Costs
B4: Type of Funds | C4: Source of Funds | D4: Committed? (Yes, No, or App Pending) | E4: If No, Additional Details | F4: Interest Rate | G4: Total Amount | H4: Annual Payment | I4: Interest Rate | J4: Loan Term | K4: Total Amount | M4: Debt | N4: 0 | P4: Acquisition Costs | Q4: ='Development Costs'!$C$11 -> 0
B5: Construction Loan | C5: Construction Loan Bank 1 | M5: Equity | N5: 0 | P5: Pre-Development Costs | Q5: ='Development Costs'!C17 -> 0
B6: First Mortgage | C6: Mortgage Bank 1 | M6: Grant | N6: 0 | P6: Construction / Rehabilitation Costs | Q6: =SUM('Development Costs'!$C$44-'Development Costs'!$C$39) -> 0
B7: Second Mortgage | C7: Mortgage Bank 2 | M7: Other | N7: 0 | P7: General Contractor Overhead & Profit | Q7: ='Development Costs'!$C$39 -> 0
B8: Third Mortgage | C8: Mortgage Bank 3 | M8: AHFC Funding Request | N8: 0 | P8: Construction Interest | Q8: ='Development Costs'!$C$52 -> 0
B9: Etc… Please Label | C9: Mortgage Bank 3 | M9: Previous AHFC Funding Award | N9: 0 | P9: Permanent Financing Costs | Q9: ='Development Costs'!C55 -> 0
G10: Total Hard Debt Service: | H10: =SUM(H6:H9) -> 0 | J10: Total Hard Debt: | K10: =SUM(K6:K9) -> 0 | M10: Other | N10: 0 | P10: Developer's Fee | Q10: ='Development Costs'!$C$46 -> 0
M11: Other | N11: 0 | P11: Operating/Rent-Up Reserves | Q11: ='Development Costs'!$C$59 -> 0
B12: Soft Debt Service (Cash Flow) Financing | F12: Construction Period | H12: Permanent Period | M12: Other | N12: 0 | P12: Other Soft/Carrying Costs | Q12: ='Development Costs'!C61-'Development Costs'!C46-'Development Costs'!C52-'Development Costs'!C55-'Development Costs'!C59 -> 0
B13: Type of Funds | C13: Source of Funds | D13: Committed? (Yes, No, or App Submitted) | E13: If No, Additional Details | F13: Interest Rate | G13: Total Amount | H13: % of Remaining Cash Flow | J13: Loan Term | K13: Total Amount | M13: Total Uses of Funds: | N13: =SUM(N4:N12) -> 0 | P13: Total Uses of Funds: | Q13: =SUM(Q4:Q12) -> 0
B14: Deferred Developer Fee | C14: Developer | H14: 1 | J14: N/A | Q14: =IF((Q13-N13)=0,"",Q13-N13) -> 
B15: HDA Loan | C15: AHFC | H15: 1 | J15: N/A | M15: *Please separate separate all funding sources on different rows and label each | Q15: =IF((Q13-K32)=0,"",Q13-K32) -> 
B16: Soft Loan 2 | H16: 1 | J16: N/A
B17: Etc… Please Label | H17: 1 | J17: N/A
J18: Total Soft Debt: | K18: =SUM(K14:K17) -> 0
J19: Total Debt (Hard + Soft): | K19: =SUM(K18,K10) -> 0
M20: Sources + Uses Comparison
B21: Equity Financing | F21: Construction Period | H21: Permanent Period | M21: Total Uses of Funds: | N21: =Q13 -> 0
B22: Type of Funds | D22: Committed? | E22: If No, Additional Details | F22: Total Amount | H22: Description | K22: Total Amount | M22: Total Sources of Funds (Debt + Equity): | N22: =K32 -> 0
B23: Federal LIHTC | M23: Total Sources of Funds (Construction): | N23: =G31 -> 0
B24: Other Tax Credit
B25: Grant 1
B26: Grant 2
B27: Grant 3
B28: Developer Equity (Not DDF)
B29: Interim Income (Occ Rehabs)
B30: Other
F31: Total Sources of Funds (Construction): | G31: =SUM(G5:G9,G14:G17,F23:G30) -> 0 | J31: Total Equity: | K31: =SUM(K23:K30) -> 0
J32: Total Sources of Funds (Debt + Equity): | K32: =K31+K19 -> 0

Sheet Development Costs
B2: Development Budget | F2: LIHTC Basis
C3: Project Cost | D3: Requested AHFC Funds | F3: Amount Included in LIHTC Basis
B4: Pre-Development
B5: Appraisal | F5: =C5 -> 0
B6: Environmental Review | F6: 0
B7: Engineering | F7: 0
B8: Survey | F8: 0
B9: Architectural | F9: 0
B10: Other Pre-Development Costs (Detailed Description*) | F10: 0
B11: Subtotal Pre-Development Cost: | C11: =SUM(C5:C10) -> 0 | D11: =SUM(D5:D10) -> 0 | F11: =SUM(F5:F10) -> 0
B12: Acquisition
B13: Site and/or Land
B14: Structures* | F14: =C14 -> 0
B15: Closing Costs
B16: Other Acquisition Costs (Detailed Description*)
B17: Subtotal Acquisition Cost: | C17: =SUM(C13:C16) -> 0 | D17: =SUM(D13:D16) -> 0 | F17: =SUM(F13:F16) -> 0
B18: Construction / Rehabilitation Costs
B19: Infrastructure | F19: =C19 -> 0
B20: Site Work | F20: =C20 -> 0
B21: Demolition
B22: Concrete | F22: =C22 -> 0
B23: Masonry | F23: 0
B24: Rough Carpentry | F24: 0
B25: Finish Carpentry | F25: 0
B26: Waterproofing and Insulation | F26: 0
B27: Roofing and Sheet Metal | F27: 0
B28: Plumbing/Hot Water | F28: 0
B29: HVAC/Mechanical | F29: 0
B30: Electrical | F30: 0
B31: Doors/Windows/Glass | F31: 0
B32: Lath and Plaster/Drywall and Acoustical | F32: 0
B33: Tile Work | F33: 0
B34: Soft and Hard Floor | F34: 0
B35: Paint/Decorating/Blinds/Shades | F35: 0
B36: Specialties/Special Equipment | F36: 0
B37: Cabinetry/Appliances | F37: 0
B38: Carpet | F38: 0
B39: General Contractor Overhead and Profit | F39: 0
B40: Commercial Space Costs
B41: Other Construction Costs (Detailed Description*) | F41: =C41 -> 0
B42: Construction Contingency | F42: =C42 -> 0
B43: Contingency % of Total Construction Costs | C43: =C42/C44 -> 
B44: Subtotal Construction Cost: | C44: =SUM(C19:C42) -> 0 | D44: =SUM(D19:D43) -> 0 | F44: =SUM(F19:F43) -> 0
B45: Soft & Carrying Costs
B46: Developer Fee | F46: =C46 -> 0
B47: Legal Fees
B48: Tax Credit Fees
B49: Audit/Accounting | F49: =C49 -> 0
B50: Title/Recording | F50: 0
B51: Architectural (Inspections) | F51: 0
B52: Construction Interest | F52: 0
B53: Construction Period Insurance | F53: 0
B54: Construction Period Taxes | F54: 0
B55: Permanent Financing Costs
B56: Tenant Relocation
B57: Marketing
B58: Compliance Monitoring | F58: =C58 -> 0
B59: Operating/Rent-Up Reserves
B60: Other Soft & Carrying Costs (Detailed Description*) | F60: =C60 -> 0
B61: Subtotal Soft & Carrying Cost: | C61: =SUM(C46:C60) -> 0 | D61: =SUM(D46:D60) -> 0 | F61: =SUM(F46:F60) -> 0
B63: Total Development Costs (TDC): | C63: =SUM(C11,C17,C44,C61) -> 0 | D63: =SUM(D11,D17,D44,D61) -> 0 | F63: =SUM(F11,F17,F44,F61) -> 0
B65: *Detailed Descriptions of "Other" Line Items | F65: Eligible Basis
B66: **Must breakout each item included in "Other" and corresponding cost** | F66: =F63-F59-SUM(F55:F57)-SUM(F47:F48)-F40-F21-SUM(F15:F16)-F13 -> 0
B67: =IF(C10="", "", TEXT(C10,"$#,##")&" Other Pre-Development Costs") ->  | F67: Eligible Basis Minus Dev Fee
B68: =IF(C16="", "", TEXT(C16,"$#,##")&" Other Acquisition Costs") ->  | F68: =F66-F46 -> 0
B69: =IF(C41="","",TEXT(C41,"$#,##")&" Other Construction Costs") ->  | F69: Developer Fee % of Eligible Basis*
B70: =IF(C60="", "", TEXT(C60, "$#,##")&" Other Pre-Development Costs") ->  | F70: =F46/F68 -> 
B72: *Structures in a rehabilitation development are not included in eligible basis. | F72: * Developer fee at application must be maintained throughout the development process. A final accounting will occur at conversion, where excess proceeds will pay down the loan principle.

Sheet ProForma
B2: Year 1 Annual Operating Expense Assumptions
B3: Expense Item | C3: Annual Amount | D3: Exp. Per Unit
B4: General & Administrative | D4: =C4/'Unit Mix, Income, Timeline'!$C$28 -> 
B5: Management Fee | D5: =C5/'Unit Mix, Income, Timeline'!$C$28 -> 
B6: Management Fee % of Total Rent | C6: =C5/(SUM(ProForma!C37:C39)) -> 
B7: Employee Payroll | D7: =C7/'Unit Mix, Income, Timeline'!$C$28 -> 
B8: Repairs & Maintenance | D8: =C8/'Unit Mix, Income, Timeline'!$C$28 -> 
B9: Contracted Services | D9: =C9/'Unit Mix, Income, Timeline'!$C$28 -> 
B10: Electric & Gas Utilities | D10: =C10/'Unit Mix, Income, Timeline'!$C$28 -> 
B11: Water, Sewer & Trash Utilities | D11: =C11/'Unit Mix, Income, Timeline'!$C$28 -> 
B12: Leasing & Marketing | D12: =C12/'Unit Mix, Income, Timeline'!$C$28 -> 
B13: Property Insurance Premiums | D13: =C13/'Unit Mix, Income, Timeline'!$C$28 -> 
B14: Property Tax | D14: =C14/'Unit Mix, Income, Timeline'!$C$28 -> 
B15: Compliance Fees | D15: =C15/'Unit Mix, Income, Timeline'!$C$28 -> 
B16: Other Expenses (Describe) | D16: =C16/'Unit Mix, Income, Timeline'!$C$28 -> 
B17: Other Expenses (Describe) | D17: =C17/'Unit Mix, Income, Timeline'!$C$28 -> 
B18: Required Replacement Reserves | D18: =C18/'Unit Mix, Income, Timeline'!$C$28 -> 
B19: Required RR Per Unit | C19: =Required_Replacement_Reserve/'Unit Mix, Income, Timeline'!C28 -> 
B21: Growth/Escalator Assumptions (%'s)
B22: Income Growth | C22: 0.02
B23: Expense Growth | C23: 0.03
B24: Residential Vacancy (Specify) | C24: 0.075
B25: Other Revenue Vacancy (Specify) | C25: 0.1
B27: Commercial and Other Revenue
B28: Description | C28: Annual
B32: Annual Commercial/Other Revenue: | C32: =SUM(C29:C31) -> 0
C34: ProForma Assumes Year 1 is Stabilized
B35: 20-Year Operating ProForma | C35: Year 1 | D35: Year 2 | E35: Year 3 | F35: Year 4 | G35: Year 5 | H35: Year 6 | I35: Year 7 | J35: Year 8 | K35: Year 9 | L35: Year 10 | M35: Year 11 | N35: Year 12 | O35: Year 13 | P35: Year 14 | Q35: Year 15 | R35: Year 16 | S35: Year 17 | T35: Year 18 | U35: Year 19 | V35: Year 20
B36: Annual Income
B37: Low Income Units | C37: ='Unit Mix, Income, Timeline'!M33 -> 0 | D37: =C37*(1+Income_Growth) -> 0 | E37: 0 | F37: 0 | G37: 0 | H37: 0 | I37: 0 | J37: 0 | K37: 0 | L37: 0 | M37: 0 | N37: 0 | O37: 0 | P37: 0 | Q37: 0 | R37: 0 | S37: 0 | T37: =S37*(1+Income_Growth) -> 0 | U37: 0 | V37: 0
B38: Market Rate Units | C38: ='Unit Mix, Income, Timeline'!M35 -> 0 | D38: =C38*(1+Income_Growth) -> 0 | E38: 0 | F38: 0 | G38: 0 | H38: 0 | I38: 0 | J38: 0 | K38: 0 | L38: 0 | M38: 0 | N38: 0 | O38: 0 | P38: 0 | Q38: 0 | R38: 0 | S38: 0 | T38: =S38*(1+Income_Growth) -> 0 | U38: 0 | V38: 0
B39: Residential Vacancy Allowance | C39: =-((C37+C38)*Residential_Vacancy) -> 0 | D39: 0 | E39: 0 | F39: 0 | G39: 0 | H39: 0 | I39: 0 | J39: 0 | K39: 0 | L39: 0 | M39: 0 | N39: 0 | O39: 0 | P39: 0 | Q39: 0 | R39: 0 | S39: 0 | T39: 0 | U39: 0 | V39: 0
B40: Commercial Income | C40: =ProForma!C32 -> 0 | D40: =C40*(1+Income_Growth) -> 0 | E40: 0 | F40: 0 | G40: 0 | H40: 0 | I40: 0 | J40: 0 | K40: 0 | L40: 0 | M40: 0 | N40: 0 | O40: 0 | P40: 0 | Q40: 0 | R40: 0 | S40: 0 | T40: 0 | U40: 0 | V40: 0
B41: Commercial Vacancy Allowance | C41: =-(C40*Commercial_Vacancy) -> 0 | D41: 0 | E41: 0 | F41: 0 | G41: 0 | H41: 0 | I41: 0 | J41: 0 | K41: 0 | L41: 0 | M41: 0 | N41: 0 | O41: 0 | P41: 0 | Q41: 0 | R41: 0 | S41: 0 | T41: 0 | U41: 0 | V41: 0
B42: Effective Gross Income | C42: =SUM(C37:C41) -> 0 | D42: =SUM(D37:D41) -> 0 | E42: 0 | F42: 0 | G42: 0 | H42: 0 | I42: 0 | J42: 0 | K42: 0 | L42: 0 | M42: 0 | N42: 0 | O42: 0 | P42: 0 | Q42: 0 | R42: 0 | S42: 0 | T42: 0 | U42: 0 | V42: 0
B44: Annual Expenses
B45: General & Administrative | C45: =ProForma!C4 -> 0 | D45: =C45*(1+Expense_Growth) -> 0 | E45: 0 | F45: 0 | G45: 0 | H45: 0 | I45: 0 | J45: 0 | K45: 0 | L45: 0 | M45: 0 | N45: 0 | O45: 0 | P45: 0 | Q45: 0 | R45: 0 | S45: 0 | T45: 0 | U45: 0 | V45: 0
B46: Management Fee | C46: =ProForma!C5 -> 0 | D46: =C46*(1+Expense_Growth) -> 0 | E46: 0 | F46: 0 | G46: 0 | H46: 0 | I46: 0 | J46: 0 | K46: 0 | L46: 0 | M46: 0 | N46: 0 | O46: 0 | P46: 0 | Q46: 0 | R46: 0 | S46: 0 | T46: 0 | U46: 0 | V46: 0
B47: Employee Payroll | C47: =ProForma!C7 -> 0 | D47: =C47*(1+Expense_Growth) -> 0 | E47: 0 | F47: 0 | G47: 0 | H47: 0 | I47: 0 | J47: 0 | K47: 0 | L47: 0 | M47: 0 | N47: 0 | O47: 0 | P47: 0 | Q47: 0 | R47: 0 | S47: 0 | T47: 0 | U47: 0 | V47: 0
B48: Repairs & Maintenance | C48: =ProForma!C8 -> 0 | D48: =C48*(1+Expense_Growth) -> 0 | E48: 0 | F48: 0 | G48: 0 | H48: 0 | I48: 0 | J48: 0 | K48: 0 | L48: 0 | M48: 0 | N48: 0 | O48: 0 | P48: 0 | Q48: 0 | R48: 0 | S48: 0 | T48: 0 | U48: 0 | V48: 0
B49: Contracted Services | C49: =ProForma!C9 -> 0 | D49: =C49*(1+Expense_Growth) -> 0 | E49: 0 | F49: 0 | G49: 0 | H49: 0 | I49: 0 | J49: 0 | K49: 0 | L49: 0 | M49: 0 | N49: 0 | O49: 0 | P49: 0 | Q49: 0 | R49: 0 | S49: 0 | T49: 0 | U49: 0 | V49: 0
B50: Electric & Gas Utilities | C50: =ProForma!C10 -> 0 | D50: =C50*(1+Expense_Growth) -> 0 | E50: 0 | F50: 0 | G50: 0 | H50: 0 | I50: 0 | J50: 0 | K50: 0 | L50: 0 | M50: 0 | N50: 0 | O50: 0 | P50: 0 | Q50: 0 | R50: 0 | S50: 0 | T50: 0 | U50: 0 | V50: 0
B51: Water, Sewer & Trash Utilities | C51: =ProForma!C11 -> 0 | D51: =C51*(1+Expense_Growth) -> 0 | E51: 0 | F51: 0 | G51: 0 | H51: 0 | I51: 0 | J51: 0 | K51: 0 | L51: 0 | M51: 0 | N51: 0 | O51: 0 | P51: 0 | Q51: 0 | R51: 0 | S51: 0 | T51: 0 | U51: 0 | V51: 0
B52: Leasing & Marketing | C52: =ProForma!C12 -> 0 | D52: =C52*(1+Expense_Growth) -> 0 | E52: 0 | F52: 0 | G52: 0 | H52: 0 | I52: 0 | J52: 0 | K52: 0 | L52: 0 | M52: 0 | N52: 0 | O52: 0 | P52: 0 | Q52: 0 | R52: 0 | S52: 0 | T52: =S52*(1+Expense_Growth) -> 0 | U52: 0 | V52: 0
B53: Property Insurance Premiums | C53: =ProForma!C13 -> 0 | D53: =C53*(1+Expense_Growth) -> 0 | E53: =D53*(1+Expense_Growth) -> 0 | F53: =E53*(1+Expense_Growth) -> 0 | G53: =F53*(1+Expense_Growth) -> 0 | H53: =G53*(1+Expense_Growth) -> 0 | I53: =H53*(1+Expense_Growth) -> 0 | J53: =I53*(1+Expense_Growth) -> 0 | K53: =J53*(1+Expense_Growth) -> 0 | L53: =K53*(1+Expense_Growth) -> 0 | M53: =L53*(1+Expense_Growth) -> 0 | N53: =M53*(1+Expense_Growth) -> 0 | O53: =N53*(1+Expense_Growth) -> 0 | P53: =O53*(1+Expense_Growth) -> 0 | Q53: =P53*(1+Expense_Growth) -> 0 | R53: =Q53*(1+Expense_Growth) -> 0 | S53: =R53*(1+Expense_Growth) -> 0 | T53: =S53*(1+Expense_Growth) -> 0 | U53: =T53*(1+Expense_Growth) -> 0 | V53: =U53*(1+Expense_Growth) -> 0
B54: Property Tax | C54: =ProForma!C14 -> 0 | D54: 0 | E54: 0 | F54: 0 | G54: 0 | H54: 0 | I54: 0 | J54: 0 | K54: 0 | L54: 0 | M54: 0 | N54: 0 | O54: 0 | P54: 0 | Q54: 0 | R54: 0 | S54: 0 | T54: 0 | U54: 0 | V54: 0
B55: Compliance Fees | C55: =ProForma!C15 -> 0 | D55: 0 | E55: 0 | F55: 0 | G55: 0 | H55: 0 | I55: 0 | J55: 0 | K55: 0 | L55: 0 | M55: 0 | N55: 0 | O55: 0 | P55: 0 | Q55: 0 | R55: 0 | S55: 0 | T55: 0 | U55: 0 | V55: 0
B56: Other Expenses | C56: =ProForma!C16 -> 0 | D56: =C56*(1+Expense_Growth) -> 0 | E56: 0 | F56: 0 | G56: 0 | H56: 0 | I56: 0 | J56: 0 | K56: 0 | L56: 0 | M56: 0 | N56: 0 | O56: 0 | P56: 0 | Q56: 0 | R56: 0 | S56: 0 | T56: 0 | U56: 0 | V56: 0
B57: Total Operating Expenses | C57: =SUM(C45:C56) -> 0 | D57: =SUM(D45:D56) -> 0 | E57: 0 | F57: 0 | G57: 0 | H57: 0 | I57: 0 | J57: 0 | K57: 0 | L57: 0 | M57: 0 | N57: 0 | O57: 0 | P57: 0 | Q57: 0 | R57: 0 | S57: 0 | T57: 0 | U57: 0 | V57: 0
B59: Net Operating Income (NOI) | C59: =C42-C57 -> 0 | D59: 0 | E59: 0 | F59: 0 | G59: 0 | H59: 0 | I59: 0 | J59: 0 | K59: 0 | L59: 0 | M59: 0 | N59: 0 | O59: 0 | P59: 0 | Q59: 0 | R59: 0 | S59: 0 | T59: 0 | U59: 0 | V59: 0
B61: Required Replacement Reserve | C61: =Required_Replacement_Reserve -> 0 | D61: =C61*(1+Expense_Growth) -> 0 | E61: 0 | F61: 0 | G61: 0 | H61: 0 | I61: 0 | J61: 0 | K61: 0 | L61: 0 | M61: 0 | N61: 0 | O61: 0 | P61: 0 | Q61: 0 | R61: 0 | S61: 0 | T61: 0 | U61: 0 | V61: 0
B62: NOI after Required Replacement Reserve | C62: =C59-C61 -> 0 | D62: =D59-D61 -> 0 | E62: 0 | F62: 0 | G62: 0 | H62: 0 | I62: 0 | J62: 0 | K62: 0 | L62: 0 | M62: 0 | N62: 0 | O62: 0 | P62: 0 | Q62: 0 | R62: 0 | S62: 0 | T62: 0 | U62: 0 | V62: 0
B64: Annual Hard Debt Service Financing
B66: ='Sources & Uses'!B6&" Payment" -> First Mortgage Payment | C66: =IF('Sources & Uses'!K6<"0",'Sources & Uses'!H6,0) -> 0 | D66: =IF(C67>0,MIN('Sources & Uses'!$H$6,C67),0) -> 0 | E66: =IF(D67>0,MIN('Sources & Uses'!$H$6,D67),0) -> 0 | F66: =IF(E67>0,MIN('Sources & Uses'!$H$6,E67),0) -> 0 | G66: =IF(F67>0,MIN('Sources & Uses'!$H$6,F67),0) -> 0 | H66: =IF(G67>0,MIN('Sources & Uses'!$H$6,G67),0) -> 0 | I66: =IF(H67>0,MIN('Sources & Uses'!$H$6,H67),0) -> 0 | J66: =IF(I67>0,MIN('Sources & Uses'!$H$6,I67),0) -> 0 | K66: =IF(J67>0,MIN('Sources & Uses'!$H$6,J67),0) -> 0 | L66: =IF(K67>0,MIN('Sources & Uses'!$H$6,K67),0) -> 0 | M66: =IF(L67>0,MIN('Sources & Uses'!$H$6,L67),0) -> 0 | N66: =IF(M67>0,MIN('Sources & Uses'!$H$6,M67),0) -> 0 | O66: =IF(N67>0,MIN('Sources & Uses'!$H$6,N67),0) -> 0 | P66: =IF(O67>0,MIN('Sources & Uses'!$H$6,O67),0) -> 0 | Q66: =IF(P67>0,MIN('Sources & Uses'!$H$6,P67),0) -> 0 | R66: =IF(Q67>0,MIN('Sources & Uses'!$H$6,Q67),0) -> 0 | S66: =IF(R67>0,MIN('Sources & Uses'!$H$6,R67),0) -> 0 | T66: =IF(S67>0,MIN('Sources & Uses'!$H$6,S67),0) -> 0 | U66: =IF(T67>0,MIN('Sources & Uses'!$H$6,T67),0) -> 0 | V66: =IF(U67>0,MIN('Sources & Uses'!$H$6,U67),0) -> 0
B67: ="Balance of "&'Sources & Uses'!B6 -> Balance of First Mortgage | C67: ='Sources & Uses'!K6-ProForma!C66 -> 0 | D67: =C67-D66 -> 0 | E67: =D67-E66 -> 0 | F67: 0 | G67: 0 | H67: 0 | I67: =H67-I66 -> 0 | J67: 0 | K67: 0 | L67: 0 | M67: 0 | N67: 0 | O67: 0 | P67: 0 | Q67: 0 | R67: 0 | S67: 0 | T67: 0 | U67: 0 | V67: 0
B68: ='Sources & Uses'!B7&" Payment" -> Second Mortgage Payment | C68: =IF('Sources & Uses'!K9<"0",'Sources & Uses'!H7,0) -> 0 | D68: =IF(C69>0,MIN('Sources & Uses'!$H$7,C69),0) -> 0 | E68: =IF(D69>0,MIN('Sources & Uses'!$H$7,D69),0) -> 0 | F68: =IF(E69>0,MIN('Sources & Uses'!$H$7,E69),0) -> 0 | G68: =IF(F69>0,MIN('Sources & Uses'!$H$7,F69),0) -> 0 | H68: =IF(G69>0,MIN('Sources & Uses'!$H$7,G69),0) -> 0 | I68: =IF(H69>0,MIN('Sources & Uses'!$H$7,H69),0) -> 0 | J68: =IF(I69>0,MIN('Sources & Uses'!$H$7,I69),0) -> 0 | K68: =IF(J69>0,MIN('Sources & Uses'!$H$7,J69),0) -> 0 | L68: =IF(K69>0,MIN('Sources & Uses'!$H$7,K69),0) -> 0 | M68: =IF(L69>0,MIN('Sources & Uses'!$H$7,L69),0) -> 0 | N68: =IF(M69>0,MIN('Sources & Uses'!$H$7,M69),0) -> 0 | O68: =IF(N69>0,MIN('Sources & Uses'!$H$7,N69),0) -> 0 | P68: =IF(O69>0,MIN('Sources & Uses'!$H$7,O69),0) -> 0 | Q68: =IF(P69>0,MIN('Sources & Uses'!$H$7,P69),0) -> 0 | R68: =IF(Q69>0,MIN('Sources & Uses'!$H$7,Q69),0) -> 0 | S68: =IF(R69>0,MIN('Sources & Uses'!$H$7,R69),0) -> 0 | T68: =IF(S69>0,MIN('Sources & Uses'!$H$7,S69),0) -> 0 | U68: =IF(T69>0,MIN('Sources & Uses'!$H$7,T69),0) -> 0 | V68: =IF(U69>0,MIN('Sources & Uses'!$H$7,U69),0) -> 0
B69: ="Balance of "&'Sources & Uses'!B7 -> Balance of Second Mortgage | C69: ='Sources & Uses'!K7-ProForma!C68 -> 0 | D69: =C69-D68 -> 0 | E69: =D69-E68 -> 0 | F69: 0 | G69: 0 | H69: 0 | I69: 0 | J69: 0 | K69: 0 | L69: 0 | M69: 0 | N69: 0 | O69: 0 | P69: 0 | Q69: 0 | R69: 0 | S69: 0 | T69: 0 | U69: 0 | V69: 0
B70: ='Sources & Uses'!B9&" Payment" -> Etc… Please Label Payment | C70: =IF('Sources & Uses'!K11<"0",'Sources & Uses'!H9,0) -> 0 | D70: =IF(C71>0,MIN('Sources & Uses'!$H$9,C71),0) -> 0 | E70: =IF(D71>0,MIN('Sources & Uses'!$H$9,D71),0) -> 0 | F70: =IF(E71>0,MIN('Sources & Uses'!$H$9,E71),0) -> 0 | G70: =IF(F71>0,MIN('Sources & Uses'!$H$9,F71),0) -> 0 | H70: =IF(G71>0,MIN('Sources & Uses'!$H$9,G71),0) -> 0 | I70: =IF(H71>0,MIN('Sources & Uses'!$H$9,H71),0) -> 0 | J70: =IF(I71>0,MIN('Sources & Uses'!$H$9,I71),0) -> 0 | K70: =IF(J71>0,MIN('Sources & Uses'!$H$9,J71),0) -> 0 | L70: =IF(K71>0,MIN('Sources & Uses'!$H$9,K71),0) -> 0 | M70: =IF(L71>0,MIN('Sources & Uses'!$H$9,L71),0) -> 0 | N70: =IF(M71>0,MIN('Sources & Uses'!$H$9,M71),0) -> 0 | O70: =IF(N71>0,MIN('Sources & Uses'!$H$9,N71),0) -> 0 | P70: =IF(O71>0,MIN('Sources & Uses'!$H$9,O71),0) -> 0 | Q70: =IF(P71>0,MIN('Sources & Uses'!$H$9,P71),0) -> 0 | R70: =IF(Q71>0,MIN('Sources & Uses'!$H$9,Q71),0) -> 0 | S70: =IF(R71>0,MIN('Sources & Uses'!$H$9,R71),0) -> 0 | T70: =IF(S71>0,MIN('Sources & Uses'!$H$9,S71),0) -> 0 | U70: =IF(T71>0,MIN('Sources & Uses'!$H$9,T71),0) -> 0 | V70: =IF(U71>0,MIN('Sources & Uses'!$H$9,U71),0) -> 0
B71: ="Balance of "&'Sources & Uses'!B9 -> Balance of Etc… Please Label | C71: ='Sources & Uses'!K9-ProForma!C70 -> 0 | D71: =C71-D70 -> 0 | E71: =D71-E70 -> 0 | F71: 0 | G71: 0 | H71: 0 | I71: 0 | J71: 0 | K71: 0 | L71: 0 | M71: 0 | N71: 0 | O71: 0 | P71: 0 | Q71: 0 | R71: 0 | S71: 0 | T71: 0 | U71: 0 | V71: 0
B72: Total Hard Debt Service | C72: =SUM(C66,C68,C70) -> 0 | D72: =SUM(D66,D68,D70) -> 0 | E72: 0 | F72: 0 | G72: 0 | H72: 0 | I72: 0 | J72: 0 | K72: 0 | L72: 0 | M72: 0 | N72: 0 | O72: 0 | P72: 0 | Q72: 0 | R72: 0 | S72: 0 | T72: 0 | U72: 0 | V72: 0
B74: Debt Service Coverage Ratio (DSCR) | C74: =IFERROR(C62/C72, "NHD") -> NHD | D74: =IFERROR(D62/D72, "NHD") -> NHD | E74: NHD | F74: NHD | G74: NHD | H74: NHD | I74: NHD | J74: NHD | K74: NHD | L74: NHD | M74: NHD | N74: NHD | O74: NHD | P74: NHD | Q74: NHD | R74: NHD | S74: NHD | T74: NHD | U74: NHD | V74: NHD
B75: Total Cash Flow (Deficit) After Hard Debt Service | C75: =C59-C72 -> 0 | D75: 0 | E75: 0 | F75: 0 | G75: 0 | H75: 0 | I75: 0 | J75: 0 | K75: 0 | L75: 0 | M75: 0 | N75: 0 | O75: 0 | P75: 0 | Q75: 0 | R75: 0 | S75: 0 | T75: 0 | U75: 0 | V75: 0
B77: Cash Flow Waterfall
B78: Deferred Developer Fee Repayment | C78: =IF(AND(C75>0,'Sources & Uses'!G14>0),MIN(('Sources & Uses'!H14*ProForma!C75),'Sources & Uses'!G14),0) -> 0 | D78: =IF(D75>0,MIN(('Sources & Uses'!$H$14*D75),C79),0) -> 0 | E78: =IF(E75>0,MIN(('Sources & Uses'!$H$14*E75),D79),0) -> 0 | F78: =IF(F75>0,MIN(('Sources & Uses'!$H$14*F75),E79),0) -> 0 | G78: =IF(G75>0,MIN(('Sources & Uses'!$H$14*G75),F79),0) -> 0 | H78: =IF(H75>0,MIN(('Sources & Uses'!$H$14*H75),G79),0) -> 0 | I78: =IF(I75>0,MIN(('Sources & Uses'!$H$14*I75),H79),0) -> 0 | J78: =IF(J75>0,MIN(('Sources & Uses'!$H$14*J75),I79),0) -> 0 | K78: =IF(K75>0,MIN(('Sources & Uses'!$H$14*K75),J79),0) -> 0 | L78: =IF(L75>0,MIN(('Sources & Uses'!$H$14*L75),K79),0) -> 0 | M78: =IF(M75>0,MIN(('Sources & Uses'!$H$14*M75),L79),0) -> 0 | N78: =IF(N75>0,MIN(('Sources & Uses'!$H$14*N75),M79),0) -> 0 | O78: =IF(O75>0,MIN(('Sources & Uses'!$H$14*O75),N79),0) -> 0 | P78: =IF(P75>0,MIN(('Sources & Uses'!$H$14*P75),O79),0) -> 0 | Q78: =IF(Q75>0,MIN(('Sources & Uses'!$H$14*Q75),P79),0) -> 0 | R78: =IF(R75>0,MIN(('Sources & Uses'!$H$14*R75),Q79),0) -> 0 | S78: =IF(S75>0,MIN(('Sources & Uses'!$H$14*S75),R79),0) -> 0 | T78: =IF(T75>0,MIN(('Sources & Uses'!$H$14*T75),S79),0) -> 0 | U78: =IF(U75>0,MIN(('Sources & Uses'!$H$14*U75),T79),0) -> 0 | V78: =IF(V75>0,MIN(('Sources & Uses'!$H$14*V75),U79),0) -> 0
B79: Balance of Deferred Developer Fee | C79: ='Sources & Uses'!G14-C78 -> 0 | D79: =C79-D78 -> 0 | E79: =D79-E78 -> 0 | F79: 0 | G79: 0 | H79: 0 | I79: 0 | J79: 0 | K79: 0 | L79: 0 | M79: 0 | N79: 0 | O79: 0 | P79: 0 | Q79: 0 | R79: 0 | S79: 0 | T79: 0 | U79: 0 | V79: 0
B80: Cash Flow After Deferred Developer Fee | C80: =C75-C78 -> 0 | D80: =D75-D78 -> 0 | E80: 0 | F80: 0 | G80: 0 | H80: 0 | I80: 0 | J80: 0 | K80: 0 | L80: 0 | M80: 0 | N80: 0 | O80: 0 | P80: 0 | Q80: 0 | R80: 0 | S80: 0 | T80: 0 | U80: 0 | V80: 0
B82: HDA Loan Payment | C82: =IF(AND(C80>0,'Sources & Uses'!K15>0),('Sources & Uses'!H15*C80),0) -> 0 | D82: =IF(D80>0,MIN(('Sources & Uses'!$H$15*D80),C83),0) -> 0 | E82: =IF(E80>0,MIN(('Sources & Uses'!$H$15*E80),D83),0) -> 0 | F82: =IF(F80>0,MIN(('Sources & Uses'!$H$15*F80),E83),0) -> 0 | G82: =IF(G80>0,MIN(('Sources & Uses'!$H$15*G80),F83),0) -> 0 | H82: =IF(H80>0,MIN(('Sources & Uses'!$H$15*H80),G83),0) -> 0 | I82: =IF(I80>0,MIN(('Sources & Uses'!$H$15*I80),H83),0) -> 0 | J82: =IF(J80>0,MIN(('Sources & Uses'!$H$15*J80),I83),0) -> 0 | K82: =IF(K80>0,MIN(('Sources & Uses'!$H$15*K80),J83),0) -> 0 | L82: =IF(L80>0,MIN(('Sources & Uses'!$H$15*L80),K83),0) -> 0 | M82: =IF(M80>0,MIN(('Sources & Uses'!$H$15*M80),L83),0) -> 0 | N82: =IF(N80>0,MIN(('Sources & Uses'!$H$15*N80),M83),0) -> 0 | O82: =IF(O80>0,MIN(('Sources & Uses'!$H$15*O80),N83),0) -> 0 | P82: =IF(P80>0,MIN(('Sources & Uses'!$H$15*P80),O83),0) -> 0 | Q82: =IF(Q80>0,MIN(('Sources & Uses'!$H$15*Q80),P83),0) -> 0 | R82: =IF(R80>0,MIN(('Sources & Uses'!$H$15*R80),Q83),0) -> 0 | S82: =IF(S80>0,MIN(('Sources & Uses'!$H$15*S80),R83),0) -> 0 | T82: =IF(T80>0,MIN(('Sources & Uses'!$H$15*T80),S83),0) -> 0 | U82: =IF(U80>0,MIN(('Sources & Uses'!$H$15*U80),T83),0) -> 0 | V82: =IF(V80>0,MIN(('Sources & Uses'!$H$15*V80),U83),0) -> 0
B83: Balance of HDA Loan | C83: ='Sources & Uses'!K15-C82 -> 0 | D83: =C83-D82 -> 0 | E83: =D83-E82 -> 0 | F83: 0 | G83: 0 | H83: 0 | I83: 0 | J83: 0 | K83: 0 | L83: 0 | M83: 0 | N83: 0 | O83: 0 | P83: 0 | Q83: 0 | R83: 0 | S83: 0 | T83: 0 | U83: 0 | V83: 0
B84: Cash Flow After HDA Loan | C84: =C80-C82 -> 0 | D84: 0 | E84: 0 | F84: 0 | G84: 0 | H84: 0 | I84: 0 | J84: 0 | K84: 0 | L84: 0 | M84: 0 | N84: 0 | O84: 0 | P84: 0 | Q84: 0 | R84: 0 | S84: 0 | T84: 0 | U84: 0 | V84: 0
B86: ='Sources & Uses'!B17&" Payment" -> Etc… Please Label Payment | C86: =IF(AND(C84>0,'Sources & Uses'!$K$17>0),('Sources & Uses'!$H$17*C84),0) -> 0 | D86: =IF(D84>0,MIN(('Sources & Uses'!$H$17*D84),C87),0) -> 0 | E86: =IF(E84>0,MIN(('Sources & Uses'!$H$17*E84),D87),0) -> 0 | F86: =IF(F84>0,MIN(('Sources & Uses'!$H$17*F84),E87),0) -> 0 | G86: =IF(G84>0,MIN(('Sources & Uses'!$H$17*G84),F87),0) -> 0 | H86: =IF(H84>0,MIN(('Sources & Uses'!$H$17*H84),G87),0) -> 0 | I86: =IF(I84>0,MIN(('Sources & Uses'!$H$17*I84),H87),0) -> 0 | J86: =IF(J84>0,MIN(('Sources & Uses'!$H$17*J84),I87),0) -> 0 | K86: =IF(K84>0,MIN(('Sources & Uses'!$H$17*K84),J87),0) -> 0 | L86: =IF(L84>0,MIN(('Sources & Uses'!$H$17*L84),K87),0) -> 0 | M86: =IF(M84>0,MIN(('Sources & Uses'!$H$17*M84),L87),0) -> 0 | N86: =IF(N84>0,MIN(('Sources & Uses'!$H$17*N84),M87),0) -> 0 | O86: =IF(O84>0,MIN(('Sources & Uses'!$H$17*O84),N87),0) -> 0 | P86: =IF(P84>0,MIN(('Sources & Uses'!$H$17*P84),O87),0) -> 0 | Q86: =IF(Q84>0,MIN(('Sources & Uses'!$H$17*Q84),P87),0) -> 0 | R86: =IF(R84>0,MIN(('Sources & Uses'!$H$17*R84),Q87),0) -> 0 | S86: =IF(S84>0,MIN(('Sources & Uses'!$H$17*S84),R87),0) -> 0 | T86: =IF(T84>0,MIN(('Sources & Uses'!$H$17*T84),S87),0) -> 0 | U86: =IF(U84>0,MIN(('Sources & Uses'!$H$17*U84),T87),0) -> 0 | V86: =IF(V84>0,MIN(('Sources & Uses'!$H$17*V84),U87),0) -> 0
B87: ="Balance of "&'Sources & Uses'!B17 -> Balance of Etc… Please Label | C87: ='Sources & Uses'!K17-C86 -> 0 | D87: =C87-D86 -> 0 | E87: =D87-E86 -> 0 | F87: 0 | G87: 0 | H87: 0 | I87: 0 | J87: 0 | K87: 0 | L87: 0 | M87: 0 | N87: 0 | O87: 0 | P87: 0 | Q87: 0 | R87: 0 | S87: 0 | T87: 0 | U87: 0 | V87: 0
B88: ="Cash Flow After "&'Sources & Uses'!B17 -> Cash Flow After Etc… Please Label | C88: =C84-C86 -> 0 | D88: =D84-D86 -> 0 | E88: 0 | F88: 0 | G88: 0 | H88: 0 | I88: 0 | J88: 0 | K88: 0 | L88: 0 | M88: 0 | N88: 0 | O88: 0 | P88: 0 | Q88: 0 | R88: 0 | S88: 0 | T88: 0 | U88: 0 | V88: 0
B90: Total Soft Debt Payment: | C90: =C82+C86 -> 0 | D90: =D82+D86 -> 0 | E90: 0 | F90: 0 | G90: 0 | H90: 0 | I90: 0 | J90: 0 | K90: 0 | L90: 0 | M90: 0 | N90: 0 | O90: 0 | P90: 0 | Q90: 0 | R90: 0 | S90: 0 | T90: 0 | U90: 0 | V90: 0
B92: Excess Cash Flow To Investors | C92: =C88 -> 0 | D92: =D88 -> 0 | E92: 0 | F92: 0 | G92: 0 | H92: 0 | I92: 0 | J92: 0 | K92: 0 | L92: 0 | M92: 0 | N92: 0 | O92: 0 | P92: 0 | Q92: 0 | R92: 0 | S92: 0 | T92: 0 | U92: 0 | V92: 0
